Workbook

Sheet Úvod
B4: Ceník NOARK Electric Europe, s.r.o.
B6: Česká republika
B8: Platnost od | D8: 2022-08-01

Sheet Ceník NOARK
A2: Ceník výrobků NOARK Electric Europe s.r.o. | D2: Platnost od: | E2: =Valid -> 2022-08-01
A3: Česká republika
A4: Objednací číslo | B4: Typové označení | C4: Popis | D4: Rabatová skupina | E4: Brutto cena (Kč) | F4: Rabat | G4: Cena po slevě (Kč) | H4: EAN kód výrobku | I4: Základní balení (ks) | J4: EAN/GTIN kód základního balení | K4: Kartónové balení (ks) | L4: EAN/GTIN kód kartónového balení | M4: Celní sazebník | N4: Jednotková hmotnost (kg) | O4: Recyklační příspěvek (Kč)
A6: Instalační jističe Ex9BH, 10 kA
A7: 100270 | B7: Ex9BH 1P B1 | C7: Instalační jistič 10 kA, charakteristika B, 1 A, 1pól | D7: NAA | E7: 145 | F7: =NAA -> 0 | G7: =E7*(1-F7) -> 145 | H7: 8592765002716 | I7: 12 | J7: 18592765002713 | K7: 144 | L7: 28592765002710 | M7: 8536201090 | N7: 0.11 | O7: 0.11
A8: 100271 | B8: Ex9BH 1P B2 | C8: Instalační jistič 10 kA, charakteristika B, 2 A, 1pól | D8: NAA | E8: 144 | F8: 0 | G8: 144 | H8: 8592765002723 | I8: 12 | J8: 18592765002720 | K8: 144 | L8: 28592765002727 | M8: 8536201090 | N8: 0.11 | O8: 0.11
A9: 100272 | B9: Ex9BH 1P B3 | C9: Instalační jistič 10 kA, charakteristika B, 3 A, 1pól | D9: NAA | E9: 145 | F9: 0 | G9: 145 | H9: 8592765002730 | I9: 12 | J9: 18592765002737 | K9: 144 | L9: 28592765002734 | M9: 8536201090 | N9: 0.11 | O9: 0.11
A10: 100273 | B10: Ex9BH 1P B4 | C10: Instalační jistič 10 kA, charakteristika B, 4 A, 1pól | D10: NAA | E10: 145 | F10: 0 | G10: 145 | H10: 8592765002747 | I10: 12 | J10: 18592765002744 | K10: 144 | L10: 28592765002741 | M10: 8536201090 | N10: 0.11 | O10: 0.11
A11: 100274 | B11: Ex9BH 1P B6 | C11: Instalační jistič 10 kA, charakteristika B, 6 A, 1pól | D11: NAA | E11: 112 | F11: 0 | G11: 112 | H11: 8592765002754 | I11: 12 | J11: 18592765002751 | K11: 144 | L11: 28592765002758 | M11: 8536201090 | N11: 0.11 | O11: 0.11
A12: 100275 | B12: Ex9BH 1P B8 | C12: Instalační jistič 10 kA, charakteristika B, 8 A, 1pól | D12: NAA | E12: 110 | F12: 0 | G12: 110 | H12: 8592765002761 | I12: 12 | J12: 18592765002768 | K12: 144 | L12: 28592765002765 | M12: 8536201090 | N12: 0.11 | O12: 0.11
A13: 100276 | B13: Ex9BH 1P B10 | C13: Instalační jistič 10 kA, charakteristika B, 10 A, 1pól | D13: NAA | E13: 101 | F13: 0 | G13: 101 | H13: 8592765002778 | I13: 12 | J13: 18592765002775 | K13: 144 | L13: 28592765002772 | M13: 8536201090 | N13: 0.11 | O13: 0.11
A14: 100277 | B14: Ex9BH 1P B13 | C14: Instalační jistič 10 kA, charakteristika B, 13 A, 1pól | D14: NAA | E14: 112 | F14: 0 | G14: 112 | H14: 8592765002785 | I14: 12 | J14: 18592765002782 | K14: 144 | L14: 28592765002789 | M14: 8536201090 | N14: 0.11 | O14: 0.11
A15: 100278 | B15: Ex9BH 1P B16 | C15: Instalační jistič 10 kA, charakteristika B, 16 A, 1pól | D15: NAA | E15: 98 | F15: 0 | G15: 98 | H15: 8592765002792 | I15: 12 | J15: 18592765002799 | K15: 144 | L15: 28592765002796 | M15: 8536201090 | N15: 0.11 | O15: 0.11
A16: 100279 | B16: Ex9BH 1P B20 | C16: Instalační jistič 10 kA, charakteristika B, 20 A, 1pól | D16: NAA | E16: 112 | F16: 0 | G16: 112 | H16: 8592765002808 | I16: 12 | J16: 18592765002805 | K16: 144 | L16: 28592765002802 | M16: 8536201090 | N16: 0.11 | O16: 0.11
A17: 100280 | B17: Ex9BH 1P B25 | C17: Instalační jistič 10 kA, charakteristika B, 25 A, 1pól | D17: NAA | E17: 110 | F17: 0 | G17: 110 | H17: 8592765002815 | I17: 12 | J17: 18592765002812 | K17: 144 | L17: 28592765002819 | M17: 8536201090 | N17: 0.11 | O17: 0.11
A18: 100281 | B18: Ex9BH 1P B32 | C18: Instalační jistič 10 kA, charakteristika B, 32 A, 1pól | D18: NAA | E18: 164 | F18: 0 | G18: 164 | H18: 8592765002822 | I18: 12 | J18: 18592765002829 | K18: 144 | L18: 28592765002826 | M18: 8536201090 | N18: 0.11 | O18: 0.11
A19: 100282 | B19: Ex9BH 1P B40 | C19: Instalační jistič 10 kA, charakteristika B, 40 A, 1pól | D19: NAA | E19: 172 | F19: 0 | G19: 172 | H19: 8592765002839 | I19: 12 | J19: 18592765002836 | K19: 144 | L19: 28592765002833 | M19: 8536201090 | N19: 0.11 | O19: 0.11
A20: 100283 | B20: Ex9BH 1P B50 | C20: Instalační jistič 10 kA, charakteristika B, 50 A, 1pól | D20: NAA | E20: 258 | F20: 0 | G20: 258 | H20: 8592765002846 | I20: 12 | J20: 18592765002843 | K20: 144 | L20: 28592765002840 | M20: 8536201090 | N20: 0.11 | O20: 0.11
A21: 100284 | B21: Ex9BH 1P B63 | C21: Instalační jistič 10 kA, charakteristika B, 63 A, 1pól | D21: NAA | E21: 261 | F21: 0 | G21: 261 | H21: 8592765002853 | I21: 12 | J21: 18592765002850 | K21: 144 | L21: 28592765002857 | M21: 8536201090 | N21: 0.12 | O21: 0.12
A22: 100285 | B22: Ex9BH 1PN B1 | C22: Instalační jistič 10 kA, charakteristika B, 1 A, 1+Npól | D22: NAA | E22: 280 | F22: 0 | G22: 280 | H22: 8592765002860 | I22: 6 | J22: 18592765002867 | K22: 72 | L22: 28592765002864 | M22: 8536201090 | N22: 0.22 | O22: 0.22
A23: 100286 | B23: Ex9BH 1PN B2 | C23: Instalační jistič 10 kA, charakteristika B, 2 A, 1+Npól | D23: NAA | E23: 279 | F23: 0 | G23: 279 | H23: 8592765002877 | I23: 6 | J23: 18592765002874 | K23: 72 | L23: 28592765002871 | M23: 8536201090 | N23: 0.25 | O23: 0.25
A24: 100287 | B24: Ex9BH 1PN B3 | C24: Instalační jistič 10 kA, charakteristika B, 3 A, 1+Npól | D24: NAA | E24: 278 | F24: 0 | G24: 278 | H24: 8592765002884 | I24: 6 | J24: 18592765002881 | K24: 72 | L24: 28592765002888 | M24: 8536201090 | N24: 0.25 | O24: 0.25
A25: 100288 | B25: Ex9BH 1PN B4 | C25: Instalační jistič 10 kA, charakteristika B, 4 A, 1+Npól | D25: NAA | E25: 277 | F25: 0 | G25: 277 | H25: 8592765002891 | I25: 6 | J25: 18592765002898 | K25: 72 | L25: 28592765002895 | M25: 8536201090 | N25: 0.25 | O25: 0.25
A26: 100289 | B26: Ex9BH 1PN B6 | C26: Instalační jistič 10 kA, charakteristika B, 6 A, 1+Npól | D26: NAA | E26: 276 | F26: 0 | G26: 276 | H26: 8592765002907 | I26: 6 | J26: 18592765002904 | K26: 72 | L26: 28592765002901 | M26: 8536201090 | N26: 0.25 | O26: 0.25
A27: 100290 | B27: Ex9BH 1PN B8 | C27: Instalační jistič 10 kA, charakteristika B, 8 A, 1+Npól | D27: NAA | E27: 276 | F27: 0 | G27: 276 | H27: 8592765002914 | I27: 6 | J27: 18592765002911 | K27: 72 | L27: 28592765002918 | M27: 8536201090 | N27: 0.25 | O27: 0.25
A28: 100291 | B28: Ex9BH 1PN B10 | C28: Instalační jistič 10 kA, charakteristika B, 10 A, 1+Npól | D28: NAA | E28: 225 | F28: 0 | G28: 225 | H28: 8592765002921 | I28: 6 | J28: 18592765002928 | K28: 72 | L28: 28592765002925 | M28: 8536201090 | N28: 0.25 | O28: 0.25
A29: 100292 | B29: Ex9BH 1PN B13 | C29: Instalační jistič 10 kA, charakteristika B, 13 A, 1+Npól | D29: NAA | E29: 228 | F29: 0 | G29: 228 | H29: 8592765002938 | I29: 6 | J29: 18592765002935 | K29: 72 | L29: 28592765002932 | M29: 8536201090 | N29: 0.25 | O29: 0.25
A30: 100293 | B30: Ex9BH 1PN B16 | C30: Instalační jistič 10 kA, charakteristika B, 16 A, 1+Npól | D30: NAA | E30: 225 | F30: 0 | G30: 225 | H30: 8592765002945 | I30: 6 | J30: 18592765002942 | K30: 72 | L30: 28592765002949 | M30: 8536201090 | N30: 0.25 | O30: 0.25
A31: 100294 | B31: Ex9BH 1PN B20 | C31: Instalační jistič 10 kA, charakteristika B, 20 A, 1+Npól | D31: NAA | E31: 228 | F31: 0 | G31: 228 | H31: 8592765002952 | I31: 6 | J31: 18592765002959 | K31: 72 | L31: 28592765002956 | M31: 8536201090 | N31: 0.25 | O31: 0.25
A32: 100295 | B32: Ex9BH 1PN B25 | C32: Instalační jistič 10 kA, charakteristika B, 25 A, 1+Npól | D32: NAA | E32: 228 | F32: 0 | G32: 228 | H32: 8592765002969 | I32: 6 | J32: 18592765002966 | K32: 72 | L32: 28592765002963 | M32: 8536201090 | N32: 0.25 | O32: 0.25
A33: 100296 | B33: Ex9BH 1PN B32 | C33: Instalační jistič 10 kA, charakteristika B, 32 A, 1+Npól | D33: NAA | E33: 306 | F33: 0 | G33: 306 | H33: 8592765002976 | I33: 6 | J33: 18592765002973 | K33: 72 | L33: 28592765002970 | M33: 8536201090 | N33: 0.23 | O33: 0.23
A34: 100297 | B34: Ex9BH 1PN B40 | C34: Instalační jistič 10 kA, charakteristika B, 40 A, 1+Npól | D34: NAA | E34: 311 | F34: 0 | G34: 311 | H34: 8592765002983 | I34: 6 | J34: 18592765002980 | K34: 72 | L34: 28592765002987 | M34: 8536201090 | N34: 0.25 | O34: 0.25
A35: 100298 | B35: Ex9BH 1PN B50 | C35: Instalační jistič 10 kA, charakteristika B, 50 A, 1+Npól | D35: NAA | E35: 826 | F35: 0 | G35: 826 | H35: 8592765002990 | I35: 6 | J35: 18592765002997 | K35: 72 | L35: 28592765002994 | M35: 8536201090 | N35: 0.25 | O35: 0.25
A36: 100299 | B36: Ex9BH 1PN B63 | C36: Instalační jistič 10 kA, charakteristika B, 63 A, 1+Npól | D36: NAA | E36: 831 | F36: 0 | G36: 831 | H36: 8592765003003 | I36: 6 | J36: 18592765003000 | K36: 72 | L36: 28592765003007 | M36: 8536201090 | N36: 0.25 | O36: 0.25
A37: 100300 | B37: Ex9BH 2P B1 | C37: Instalační jistič 10 kA, charakteristika B, 1 A, 2pól | D37: NAA | E37: 335 | F37: 0 | G37: 335 | H37: 8592765003010 | I37: 6 | J37: 18592765003017 | K37: 72 | L37: 28592765003014 | M37: 8536201090 | N37: 0.25 | O37: 0.25
A38: 100301 | B38: Ex9BH 2P B2 | C38: Instalační jistič 10 kA, charakteristika B, 2 A, 2pól | D38: NAA | E38: 334 | F38: 0 | G38: 334 | H38: 8592765003027 | I38: 6 | J38: 18592765003024 | K38: 72 | L38: 28592765003021 | M38: 8536201090 | N38: 0.25 | O38: 0.25
A39: 100302 | B39: Ex9BH 2P B3 | C39: Instalační jistič 10 kA, charakteristika B, 3 A, 2pól | D39: NAA | E39: 333 | F39: 0 | G39: 333 | H39: 8592765003034 | I39: 6 | J39: 18592765003031 | K39: 72 | L39: 28592765003038 | M39: 8536201090 | N39: 0.25 | O39: 0.25
A40: 100303 | B40: Ex9BH 2P B4 | C40: Instalační jistič 10 kA, charakteristika B, 4 A, 2pól | D40: NAA | E40: 332 | F40: 0 | G40: 332 | H40: 8592765003041 | I40: 6 | J40: 18592765003048 | K40: 72 | L40: 28592765003045 | M40: 8536201090 | N40: 0.25 | O40: 0.25
A41: 100304 | B41: Ex9BH 2P B6 | C41: Instalační jistič 10 kA, charakteristika B, 6 A, 2pól | D41: NAA | E41: 331 | F41: 0 | G41: 331 | H41: 8592765003058 | I41: 6 | J41: 18592765003055 | K41: 72 | L41: 28592765003052 | M41: 8536201090 | N41: 0.25 | O41: 0.25
A42: 100305 | B42: Ex9BH 2P B8 | C42: Instalační jistič 10 kA, charakteristika B, 8 A, 2pól | D42: NAA | E42: 331 | F42: 0 | G42: 331 | H42: 8592765003065 | I42: 6 | J42: 18592765003062 | K42: 72 | L42: 28592765003069 | M42: 8536201090 | N42: 0.25 | O42: 0.25
A43: 100306 | B43: Ex9BH 2P B10 | C43: Instalační jistič 10 kA, charakteristika B, 10 A, 2pól | D43: NAA | E43: 305 | F43: 0 | G43: 305 | H43: 8592765003072 | I43: 6 | J43: 18592765003079 | K43: 72 | L43: 28592765003076 | M43: 8536201090 | N43: 0.25 | O43: 0.25
A44: 100307 | B44: Ex9BH 2P B13 | C44: Instalační jistič 10 kA, charakteristika B, 13 A, 2pól | D44: NAA | E44: 308 | F44: 0 | G44: 308 | H44: 8592765003089 | I44: 6 | J44: 18592765003086 | K44: 72 | L44: 28592765003083 | M44: 8536201090 | N44: 0.25 | O44: 0.25
A45: 100308 | B45: Ex9BH 2P B16 | C45: Instalační jistič 10 kA, charakteristika B, 16 A, 2pól | D45: NAA | E45: 305 | F45: 0 | G45: 305 | H45: 8592765003096 | I45: 6 | J45: 18592765003093 | K45: 72 | L45: 28592765003090 | M45: 8536201090 | N45: 0.25 | O45: 0.25
A46: 100309 | B46: Ex9BH 2P B20 | C46: Instalační jistič 10 kA, charakteristika B, 20 A, 2pól | D46: NAA | E46: 308 | F46: 0 | G46: 308 | H46: 8592765003102 | I46: 6 | J46: 18592765003109 | K46: 72 | L46: 28592765003106 | M46: 8536201090 | N46: 0.25 | O46: 0.25
A47: 100310 | B47: Ex9BH 2P B25 | C47: Instalační jistič 10 kA, charakteristika B, 25 A, 2pól | D47: NAA | E47: 311 | F47: 0 | G47: 311 | H47: 8592765003119 | I47: 6 | J47: 18592765003116 | K47: 72 | L47: 28592765003113 | M47: 8536201090 | N47: 0.25 | O47: 0.25
A48: 100311 | B48: Ex9BH 2P B32 | C48: Instalační jistič 10 kA, charakteristika B, 32 A, 2pól | D48: NAA | E48: 401 | F48: 0 | G48: 401 | H48: 8592765003126 | I48: 6 | J48: 18592765003123 | K48: 72 | L48: 28592765003120 | M48: 8536201090 | N48: 0.25 | O48: 0.25
A49: 100312 | B49: Ex9BH 2P B40 | C49: Instalační jistič 10 kA, charakteristika B, 40 A, 2pól | D49: NAA | E49: 404 | F49: 0 | G49: 404 | H49: 8592765003133 | I49: 6 | J49: 18592765003130 | K49: 72 | L49: 28592765003137 | M49: 8536201090 | N49: 0.25 | O49: 0.25
A50: 100313 | B50: Ex9BH 2P B50 | C50: Instalační jistič 10 kA, charakteristika B, 50 A, 2pól | D50: NAA | E50: 1015 | F50: 0 | G50: 1015 | H50: 8592765003140 | I50: 6 | J50: 18592765003147 | K50: 72 | L50: 28592765003144 | M50: 8536201090 | N50: 0.25 | O50: 0.25
A51: 100314 | B51: Ex9BH 2P B63 | C51: Instalační jistič 10 kA, charakteristika B, 63 A, 2pól | D51: NAA | E51: 1021 | F51: 0 | G51: 1021 | H51: 8592765003157 | I51: 6 | J51: 18592765003154 | K51: 72 | L51: 28592765003151 | M51: 8536201090 | N51: 0.25 | O51: 0.25
A52: 100315 | B52: Ex9BH 3P B1 | C52: Instalační jistič 10 kA, charakteristika B, 1 A, 3pól | D52: NAA | E52: 430 | F52: 0 | G52: 430 | H52: 8592765003164 | I52: 4 | J52: 18592765003161 | K52: 48 | L52: 28592765003168 | M52: 8536201090 | N52: 0.33 | O52: 0.33
A53: 100316 | B53: Ex9BH 3P B2 | C53: Instalační jistič 10 kA, charakteristika B, 2 A, 3pól | D53: NAA | E53: 427 | F53: 0 | G53: 427 | H53: 8592765003171 | I53: 4 | J53: 18592765003178 | K53: 48 | L53: 28592765003175 | M53: 8536201090 | N53: 0.33 | O53: 0.33
A54: 100317 | B54: Ex9BH 3P B3 | C54: Instalační jistič 10 kA, charakteristika B, 3 A, 3pól | D54: NAA | E54: 425 | F54: 0 | G54: 425 | H54: 8592765003188 | I54: 4 | J54: 18592765003185 | K54: 48 | L54: 28592765003182 | M54: 8536201090 | N54: 0.33 | O54: 0.33
A55: 100318 | B55: Ex9BH 3P B4 | C55: Instalační jistič 10 kA, charakteristika B, 4 A, 3pól | D55: NAA | E55: 422 | F55: 0 | G55: 422 | H55: 8592765003195 | I55: 4 | J55: 18592765003192 | K55: 48 | L55: 28592765003199 | M55: 8536201090 | N55: 0.33 | O55: 0.33
A56: 100319 | B56: Ex9BH 3P B6 | C56: Instalační jistič 10 kA, charakteristika B, 6 A, 3pól | D56: NAA | E56: 408 | F56: 0 | G56: 408 | H56: 8592765003201 | I56: 4 | J56: 18592765003208 | K56: 48 | L56: 28592765003205 | M56: 8536201090 | N56: 0.33 | O56: 0.33
A57: 100320 | B57: Ex9BH 3P B8 | C57: Instalační jistič 10 kA, charakteristika B, 8 A, 3pól | D57: NAA | E57: 408 | F57: 0 | G57: 408 | H57: 8592765003218 | I57: 4 | J57: 18592765003215 | K57: 48 | L57: 28592765003212 | M57: 8536201090 | N57: 0.33 | O57: 0.33
A58: 100321 | B58: Ex9BH 3P B10 | C58: Instalační jistič 10 kA, charakteristika B, 10 A, 3pól | D58: NAA | E58: 373 | F58: 0 | G58: 373 | H58: 8592765003225 | I58: 4 | J58: 18592765003222 | K58: 48 | L58: 28592765003229 | M58: 8536201090 | N58: 0.33 | O58: 0.33
A59: 100322 | B59: Ex9BH 3P B13 | C59: Instalační jistič 10 kA, charakteristika B, 13 A, 3pól | D59: NAA | E59: 363 | F59: 0 | G59: 363 | H59: 8592765003232 | I59: 4 | J59: 18592765003239 | K59: 48 | L59: 28592765003236 | M59: 8536201090 | N59: 0.33 | O59: 0.33
A60: 100323 | B60: Ex9BH 3P B16 | C60: Instalační jistič 10 kA, charakteristika B, 16 A, 3pól | D60: NAA | E60: 354 | F60: 0 | G60: 354 | H60: 8592765003249 | I60: 4 | J60: 18592765003246 | K60: 48 | L60: 28592765003243 | M60: 8536201090 | N60: 0.33 | O60: 0.33
A61: 100324 | B61: Ex9BH 3P B20 | C61: Instalační jistič 10 kA, charakteristika B, 20 A, 3pól | D61: NAA | E61: 363 | F61: 0 | G61: 363 | H61: 8592765003256 | I61: 4 | J61: 18592765003253 | K61: 48 | L61: 28592765003250 | M61: 8536201090 | N61: 0.33 | O61: 0.33
A62: 100325 | B62: Ex9BH 3P B25 | C62: Instalační jistič 10 kA, charakteristika B, 25 A, 3pól | D62: NAA | E62: 372 | F62: 0 | G62: 372 | H62: 8592765003263 | I62: 4 | J62: 18592765003260 | K62: 48 | L62: 28592765003267 | M62: 8536201090 | N62: 0.33 | O62: 0.33
A63: 100326 | B63: Ex9BH 3P B32 | C63: Instalační jistič 10 kA, charakteristika B, 32 A, 3pól | D63: NAA | E63: 373 | F63: 0 | G63: 373 | H63: 8592765003270 | I63: 4 | J63: 18592765003277 | K63: 48 | L63: 28592765003274 | M63: 8536201090 | N63: 0.33 | O63: 0.33
A64: 100327 | B64: Ex9BH 3P B40 | C64: Instalační jistič 10 kA, charakteristika B, 40 A, 3pól | D64: NAA | E64: 511 | F64: 0 | G64: 511 | H64: 8592765003287 | I64: 4 | J64: 18592765003284 | K64: 48 | L64: 28592765003281 | M64: 8536201090 | N64: 0.34 | O64: 0.34
A65: 100328 | B65: Ex9BH 3P B50 | C65: Instalační jistič 10 kA, charakteristika B, 50 A, 3pól | D65: NAA | E65: 784 | F65: 0 | G65: 784 | H65: 8592765003294 | I65: 4 | J65: 18592765003291 | K65: 48 | L65: 28592765003298 | M65: 8536201090 | N65: 0.34 | O65: 0.34
A66: 100329 | B66: Ex9BH 3P B63 | C66: Instalační jistič 10 kA, charakteristika B, 63 A, 3pól | D66: NAA | E66: 799 | F66: 0 | G66: 799 | H66: 8592765003300 | I66: 4 | J66: 18592765003307 | K66: 48 | L66: 28592765003304 | M66: 8536201090 | N66: 0.37 | O66: 0.37
A67: 100330 | B67: Ex9BH 3PN B1 | C67: Instalační jistič 10 kA, charakteristika B, 1 A, 3+Npól | D67: NAA | E67: 755 | F67: 0 | G67: 755 | H67: 8592765003317 | I67: 3 | J67: 18592765003314 | K67: 36 | L67: 28592765003311 | M67: 8536201090 | N67: 0.44 | O67: 0.44
A68: 100331 | B68: Ex9BH 3PN B2 | C68: Instalační jistič 10 kA, charakteristika B, 2 A, 3+Npól | D68: NAA | E68: 753 | F68: 0 | G68: 753 | H68: 8592765003324 | I68: 3 | J68: 18592765003321 | K68: 36 | L68: 28592765003328 | M68: 8536201090 | N68: 0.44 | O68: 0.44
A69: 100332 | B69: Ex9BH 3PN B3 | C69: Instalační jistič 10 kA, charakteristika B, 3 A, 3+Npól | D69: NAA | E69: 752 | F69: 0 | G69: 752 | H69: 8592765003331 | I69: 3 | J69: 18592765003338 | K69: 36 | L69: 28592765003335 | M69: 8536201090 | N69: 0.44 | O69: 0.44
A70: 100333 | B70: Ex9BH 3PN B4 | C70: Instalační jistič 10 kA, charakteristika B, 4 A, 3+Npól | D70: NAA | E70: 749 | F70: 0 | G70: 749 | H70: 8592765003348 | I70: 3 | J70: 18592765003345 | K70: 36 | L70: 28592765003342 | M70: 8536201090 | N70: 0.44 | O70: 0.44
A71: 100334 | B71: Ex9BH 3PN B6 | C71: Instalační jistič 10 kA, charakteristika B, 6 A, 3+Npól | D71: NAA | E71: 745 | F71: =NAA -> 0 | G71: =E71*(1-F71) -> 745 | H71: 8592765003355 | I71: 3 | J71: 18592765003352 | K71: 36 | L71: 28592765003359 | M71: 8536201090 | N71: 0.44 | O71: 0.44
A72: 100335 | B72: Ex9BH 3PN B8 | C72: Instalační jistič 10 kA, charakteristika B, 8 A, 3+Npól | D72: NAA | E72: 743 | F72: 0 | G72: 743 | H72: 8592765003362 | I72: 3 | J72: 18592765003369 | K72: 36 | L72: 28592765003366 | M72: 8536201090 | N72: 0.44 | O72: 0.44
A73: 100336 | B73: Ex9BH 3PN B10 | C73: Instalační jistič 10 kA, charakteristika B, 10 A, 3+Npól | D73: NAA | E73: 567 | F73: 0 | G73: 567 | H73: 8592765003379 | I73: 3 | J73: 18592765003376 | K73: 36 | L73: 28592765003373 | M73: 8536201090 | N73: 0.44 | O73: 0.44
A74: 100337 | B74: Ex9BH 3PN B13 | C74: Instalační jistič 10 kA, charakteristika B, 13 A, 3+Npól | D74: NAA | E74: 569 | F74: 0 | G74: 569 | H74: 8592765003386 | I74: 3 | J74: 18592765003383 | K74: 36 | L74: 28592765003380 | M74: 8536201090 | N74: 0.44 | O74: 0.44
A75: 100338 | B75: Ex9BH 3PN B16 | C75: Instalační jistič 10 kA, charakteristika B, 16 A, 3+Npól | D75: NAA | E75: 567 | F75: 0 | G75: 567 | H75: 8592765003393 | I75: 3 | J75: 18592765003390 | K75: 36 | L75: 28592765003397 | M75: 8536201090 | N75: 0.44 | O75: 0.44
A76: 100339 | B76: Ex9BH 3PN B20 | C76: Instalační jistič 10 kA, charakteristika B, 20 A, 3+Npól | D76: NAA | E76: 569 | F76: 0 | G76: 569 | H76: 8592765003409 | I76: 3 | J76: 18592765003406 | K76: 36 | L76: 28592765003403 | M76: 8536201090 | N76: 0.44 | O76: 0.44
A77: 100340 | B77: Ex9BH 3PN B25 | C77: Instalační jistič 10 kA, charakteristika B, 25 A, 3+Npól | D77: NAA | E77: 571 | F77: 0 | G77: 571 | H77: 8592765003416 | I77: 3 | J77: 18592765003413 | K77: 36 | L77: 28592765003410 | M77: 8536201090 | N77: 0.44 | O77: 0.44
A78: 100341 | B78: Ex9BH 3PN B32 | C78: Instalační jistič 10 kA, charakteristika B, 32 A, 3+Npól | D78: NAA | E78: 741 | F78: 0 | G78: 741 | H78: 8592765003423 | I78: 3 | J78: 18592765003420 | K78: 36 | L78: 28592765003427 | M78: 8536201090 | N78: 0.44 | O78: 0.44
A79: 100342 | B79: Ex9BH 3PN B40 | C79: Instalační jistič 10 kA, charakteristika B, 40 A, 3+Npól | D79: NAA | E79: 748 | F79: 0 | G79: 748 | H79: 8592765003430 | I79: 3 | J79: 18592765003437 | K79: 36 | L79: 28592765003434 | M79: 8536201090 | N79: 0.46 | O79: 0.46
A80: 100343 | B80: Ex9BH 3PN B50 | C80: Instalační jistič 10 kA, charakteristika B, 50 A, 3+Npól | D80: NAA | E80: 1358 | F80: 0 | G80: 1358 | H80: 8592765003447 | I80: 3 | J80: 18592765003444 | K80: 36 | L80: 28592765003441 | M80: 8536201090 | N80: 0.46 | O80: 0.46
A81: 100344 | B81: Ex9BH 3PN B63 | C81: Instalační jistič 10 kA, charakteristika B, 63 A, 3+Npól | D81: NAA | E81: 1372 | F81: 0 | G81: 1372 | H81: 8592765003454 | I81: 3 | J81: 18592765003451 | K81: 36 | L81: 28592765003458 | M81: 8536201090 | N81: 0.44 | O81: 0.44
A82: 100345 | B82: Ex9BH 4P B1 | C82: Instalační jistič 10 kA, charakteristika B, 1 A, 4pól | D82: NAA | E82: 801 | F82: 0 | G82: 801 | H82: 8592765003461 | I82: 3 | J82: 18592765003468 | K82: 36 | L82: 28592765003465 | M82: 8536201090 | N82: 0.44 | O82: 0.44
A83: 100346 | B83: Ex9BH 4P B2 | C83: Instalační jistič 10 kA, charakteristika B, 2 A, 4pól | D83: NAA | E83: 794 | F83: 0 | G83: 794 | H83: 8592765003478 | I83: 3 | J83: 18592765003475 | K83: 36 | L83: 28592765003472 | M83: 8536201090 | N83: 0.44 | O83: 0.44
A84: 100347 | B84: Ex9BH 4P B3 | C84: Instalační jistič 10 kA, charakteristika B, 3 A, 4pól | D84: NAA | E84: 789 | F84: 0 | G84: 789 | H84: 8592765003485 | I84: 3 | J84: 18592765003482 | K84: 36 | L84: 28592765003489 | M84: 8536201090 | N84: 0.44 | O84: 0.44
A85: 100348 | B85: Ex9BH 4P B4 | C85: Instalační jistič 10 kA, charakteristika B, 4 A, 4pól | D85: NAA | E85: 784 | F85: 0 | G85: 784 | H85: 8592765003492 | I85: 3 | J85: 18592765003499 | K85: 36 | L85: 28592765003496 | M85: 8536201090 | N85: 0.44 | O85: 0.44
A86: 100349 | B86: Ex9BH 4P B6 | C86: Instalační jistič 10 kA, charakteristika B, 6 A, 4pól | D86: NAA | E86: 778 | F86: 0 | G86: 778 | H86: 8592765003508 | I86: 3 | J86: 18592765003505 | K86: 36 | L86: 28592765003502 | M86: 8536201090 | N86: 0.44 | O86: 0.44
A87: 100350 | B87: Ex9BH 4P B8 | C87: Instalační jistič 10 kA, charakteristika B, 8 A, 4pól | D87: NAA | E87: 776 | F87: 0 | G87: 776 | H87: 8592765003515 | I87: 3 | J87: 18592765003512 | K87: 36 | L87: 28592765003519 | M87: 8536201090 | N87: 0.44 | O87: 0.44
A88: 100351 | B88: Ex9BH 4P B10 | C88: Instalační jistič 10 kA, charakteristika B, 10 A, 4pól | D88: NAA | E88: 590 | F88: 0 | G88: 590 | H88: 8592765003522 | I88: 3 | J88: 18592765003529 | K88: 36 | L88: 28592765003526 | M88: 8536201090 | N88: 0.44 | O88: 0.44
A89: 100352 | B89: Ex9BH 4P B13 | C89: Instalační jistič 10 kA, charakteristika B, 13 A, 4pól | D89: NAA | E89: 593 | F89: 0 | G89: 593 | H89: 8592765003539 | I89: 3 | J89: 18592765003536 | K89: 36 | L89: 28592765003533 | M89: 8536201090 | N89: 0.44 | O89: 0.44
A90: 100353 | B90: Ex9BH 4P B16 | C90: Instalační jistič 10 kA, charakteristika B, 16 A, 4pól | D90: NAA | E90: 589 | F90: 0 | G90: 589 | H90: 8592765003546 | I90: 3 | J90: 18592765003543 | K90: 36 | L90: 28592765003540 | M90: 8536201090 | N90: 0.44 | O90: 0.44
A91: 100354 | B91: Ex9BH 4P B20 | C91: Instalační jistič 10 kA, charakteristika B, 20 A, 4pól | D91: NAA | E91: 593 | F91: 0 | G91: 593 | H91: 8592765003553 | I91: 3 | J91: 18592765003550 | K91: 36 | L91: 28592765003557 | M91: 8536201090 | N91: 0.44 | O91: 0.44
A92: 100355 | B92: Ex9BH 4P B25 | C92: Instalační jistič 10 kA, charakteristika B, 25 A, 4pól | D92: NAA | E92: 597 | F92: 0 | G92: 597 | H92: 8592765003560 | I92: 3 | J92: 18592765003567 | K92: 36 | L92: 28592765003564 | M92: 8536201090 | N92: 0.44 | O92: 0.44
A93: 100356 | B93: Ex9BH 4P B32 | C93: Instalační jistič 10 kA, charakteristika B, 32 A, 4pól | D93: NAA | E93: 771 | F93: 0 | G93: 771 | H93: 8592765003577 | I93: 3 | J93: 18592765003574 | K93: 36 | L93: 28592765003571 | M93: 8536201090 | N93: 0.44 | O93: 0.44
A94: 100357 | B94: Ex9BH 4P B40 | C94: Instalační jistič 10 kA, charakteristika B, 40 A, 4pól | D94: NAA | E94: 778 | F94: 0 | G94: 778 | H94: 8592765003584 | I94: 3 | J94: 18592765003581 | K94: 36 | L94: 28592765003588 | M94: 8536201090 | N94: 0.46 | O94: 0.46
A95: 100358 | B95: Ex9BH 4P B50 | C95: Instalační jistič 10 kA, charakteristika B, 50 A, 4pól | D95: NAA | E95: 1464 | F95: 0 | G95: 1464 | H95: 8592765003591 | I95: 3 | J95: 18592765003598 | K95: 36 | L95: 28592765003595 | M95: 8536201090 | N95: 0.46 | O95: 0.46
A96: 100359 | B96: Ex9BH 4P B63 | C96: Instalační jistič 10 kA, charakteristika B, 63 A, 4pól | D96: NAA | E96: 1477 | F96: 0 | G96: 1477 | H96: 8592765003607 | I96: 3 | J96: 18592765003604 | K96: 36 | L96: 28592765003601 | M96: 8536201090 | N96: 0.5 | O96: 0.5
A97: 100360 | B97: Ex9BH 1P C1 | C97: Instalační jistič 10 kA, charakteristika C, 1 A, 1pól | D97: NAA | E97: 160 | F97: 0 | G97: 160 | H97: 8592765003614 | I97: 12 | J97: 18592765003611 | K97: 144 | L97: 28592765003618 | M97: 8536201090 | N97: 0.11 | O97: 0.11
A98: 100361 | B98: Ex9BH 1P C2 | C98: Instalační jistič 10 kA, charakteristika C, 2 A, 1pól | D98: NAA | E98: 159 | F98: 0 | G98: 159 | H98: 8592765003621 | I98: 12 | J98: 18592765003628 | K98: 144 | L98: 28592765003625 | M98: 8536201090 | N98: 0.11 | O98: 0.11
A99: 100362 | B99: Ex9BH 1P C3 | C99: Instalační jistič 10 kA, charakteristika C, 3 A, 1pól | D99: NAA | E99: 160 | F99: 0 | G99: 160 | H99: 8592765003638 | I99: 12 | J99: 18592765003635 | K99: 144 | L99: 28592765003632 | M99: 8536201090 | N99: 0.11 | O99: 0.11
A100: 100363 | B100: Ex9BH 1P C4 | C100: Instalační jistič 10 kA, charakteristika C, 4 A, 1pól | D100: NAA | E100: 160 | F100: 0 | G100: 160 | H100: 8592765003645 | I100: 12 | J100: 18592765003642 | K100: 144 | L100: 28592765003649 | M100: 8536201090 | N100: 0.11 | O100: 0.11
A101: 100364 | B101: Ex9BH 1P C6 | C101: Instalační jistič 10 kA, charakteristika C, 6 A, 1pól | D101: NAA | E101: 124 | F101: 0 | G101: 124 | H101: 8592765003652 | I101: 12 | J101: 18592765003659 | K101: 144 | L101: 28592765003656 | M101: 8536201090 | N101: 0.11 | O101: 0.11
A102: 100365 | B102: Ex9BH 1P C8 | C102: Instalační jistič 10 kA, charakteristika C, 8 A, 1pól | D102: NAA | E102: 122 | F102: 0 | G102: 122 | H102: 8592765003669 | I102: 12 | J102: 18592765003666 | K102: 144 | L102: 28592765003663 | M102: 8536201090 | N102: 0.11 | O102: 0.11
A103: 100366 | B103: Ex9BH 1P C10 | C103: Instalační jistič 10 kA, charakteristika C, 10 A, 1pól | D103: NAA | E103: 110 | F103: 0 | G103: 110 | H103: 8592765003676 | I103: 12 | J103: 18592765003673 | K103: 144 | L103: 28592765003670 | M103: 8536201090 | N103: 0.11 | O103: 0.11
A104: 100367 | B104: Ex9BH 1P C13 | C104: Instalační jistič 10 kA, charakteristika C, 13 A, 1pól | D104: NAA | E104: 124 | F104: 0 | G104: 124 | H104: 8592765003683 | I104: 12 | J104: 18592765003680 | K104: 144 | L104: 28592765003687 | M104: 8536201090 | N104: 0.11 | O104: 0.11
A105: 100368 | B105: Ex9BH 1P C16 | C105: Instalační jistič 10 kA, charakteristika C, 16 A, 1pól | D105: NAA | E105: 107 | F105: 0 | G105: 107 | H105: 8592765003690 | I105: 12 | J105: 18592765003697 | K105: 144 | L105: 28592765003694 | M105: 8536201090 | N105: 0.11 | O105: 0.11
A106: 100369 | B106: Ex9BH 1P C20 | C106: Instalační jistič 10 kA, charakteristika C, 20 A, 1pól | D106: NAA | E106: 124 | F106: 0 | G106: 124 | H106: 8592765003706 | I106: 12 | J106: 18592765003703 | K106: 144 | L106: 28592765003700 | M106: 8536201090 | N106: 0.11 | O106: 0.11
A107: 100370 | B107: Ex9BH 1P C25 | C107: Instalační jistič 10 kA, charakteristika C, 25 A, 1pól | D107: NAA | E107: 122 | F107: 0 | G107: 122 | H107: 8592765003713 | I107: 12 | J107: 18592765003710 | K107: 144 | L107: 28592765003717 | M107: 8536201090 | N107: 0.11 | O107: 0.11
A108: 100371 | B108: Ex9BH 1P C32 | C108: Instalační jistič 10 kA, charakteristika C, 32 A, 1pól | D108: NAA | E108: 183 | F108: 0 | G108: 183 | H108: 8592765003720 | I108: 12 | J108: 18592765003727 | K108: 144 | L108: 28592765003724 | M108: 8536201090 | N108: 0.11 | O108: 0.11
A109: 100372 | B109: Ex9BH 1P C40 | C109: Instalační jistič 10 kA, charakteristika C, 40 A, 1pól | D109: NAA | E109: 190 | F109: 0 | G109: 190 | H109: 8592765003737 | I109: 12 | J109: 18592765003734 | K109: 144 | L109: 28592765003731 | M109: 8536201090 | N109: 0.11 | O109: 0.11
A110: 100373 | B110: Ex9BH 1P C50 | C110: Instalační jistič 10 kA, charakteristika C, 50 A, 1pól | D110: NAA | E110: 287 | F110: 0 | G110: 287 | H110: 8592765003744 | I110: 12 | J110: 18592765003741 | K110: 144 | L110: 28592765003748 | M110: 8536201090 | N110: 0.11 | O110: 0.11
A111: 100374 | B111: Ex9BH 1P C63 | C111: Instalační jistič 10 kA, charakteristika C, 63 A, 1pól | D111: NAA | E111: 290 | F111: 0 | G111: 290 | H111: 8592765003751 | I111: 12 | J111: 18592765003758 | K111: 144 | L111: 28592765003755 | M111: 8536201090 | N111: 0.12 | O111: 0.12
A112: 100375 | B112: Ex9BH 1PN C1 | C112: Instalační jistič 10 kA, charakteristika C, 1 A, 1+Npól | D112: NAA | E112: 284 | F112: 0 | G112: 284 | H112: 8592765003768 | I112: 6 | J112: 18592765003765 | K112: 72 | L112: 28592765003762 | M112: 8536201090 | N112: 0.22 | O112: 0.22
A113: 100376 | B113: Ex9BH 1PN C2 | C113: Instalační jistič 10 kA, charakteristika C, 2 A, 1+Npól | D113: NAA | E113: 283 | F113: 0 | G113: 283 | H113: 8592765003775 | I113: 6 | J113: 18592765003772 | K113: 72 | L113: 28592765003779 | M113: 8536201090 | N113: 0.25 | O113: 0.25
A114: 100377 | B114: Ex9BH 1PN C3 | C114: Instalační jistič 10 kA, charakteristika C, 3 A, 1+Npól | D114: NAA | E114: 282 | F114: 0 | G114: 282 | H114: 8592765003782 | I114: 6 | J114: 18592765003789 | K114: 72 | L114: 28592765003786 | M114: 8536201090 | N114: 0.25 | O114: 0.25
A115: 100378 | B115: Ex9BH 1PN C4 | C115: Instalační jistič 10 kA, charakteristika C, 4 A, 1+Npól | D115: NAA | E115: 278 | F115: 0 | G115: 278 | H115: 8592765003799 | I115: 6 | J115: 18592765003796 | K115: 72 | L115: 28592765003793 | M115: 8536201090 | N115: 0.25 | O115: 0.25
A116: 100379 | B116: Ex9BH 1PN C6 | C116: Instalační jistič 10 kA, charakteristika C, 6 A, 1+Npól | D116: NAA | E116: 273 | F116: 0 | G116: 273 | H116: 8592765003805 | I116: 6 | J116: 18592765003802 | K116: 72 | L116: 28592765003809 | M116: 8536201090 | N116: 0.25 | O116: 0.25
A117: 100380 | B117: Ex9BH 1PN C8 | C117: Instalační jistič 10 kA, charakteristika C, 8 A, 1+Npól | D117: NAA | E117: 279 | F117: 0 | G117: 279 | H117: 8592765003812 | I117: 6 | J117: 18592765003819 | K117: 72 | L117: 28592765003816 | M117: 8536201090 | N117: 0.25 | O117: 0.25
A118: 100381 | B118: Ex9BH 1PN C10 | C118: Instalační jistič 10 kA, charakteristika C, 10 A, 1+Npól | D118: NAA | E118: 250 | F118: 0 | G118: 250 | H118: 8592765003829 | I118: 6 | J118: 18592765003826 | K118: 72 | L118: 28592765003823 | M118: 8536201090 | N118: 0.25 | O118: 0.25
A119: 100382 | B119: Ex9BH 1PN C13 | C119: Instalační jistič 10 kA, charakteristika C, 13 A, 1+Npól | D119: NAA | E119: 254 | F119: 0 | G119: 254 | H119: 8592765003836 | I119: 6 | J119: 18592765003833 | K119: 72 | L119: 28592765003830 | M119: 8536201090 | N119: 0.25 | O119: 0.25
A120: 100383 | B120: Ex9BH 1PN C16 | C120: Instalační jistič 10 kA, charakteristika C, 16 A, 1+Npól | D120: NAA | E120: 250 | F120: 0 | G120: 250 | H120: 8592765003843 | I120: 6 | J120: 18592765003840 | K120: 72 | L120: 28592765003847 | M120: 8536201090 | N120: 0.25 | O120: 0.25
A121: 100384 | B121: Ex9BH 1PN C20 | C121: Instalační jistič 10 kA, charakteristika C, 20 A, 1+Npól | D121: NAA | E121: 254 | F121: 0 | G121: 254 | H121: 8592765003850 | I121: 6 | J121: 18592765003857 | K121: 72 | L121: 28592765003854 | M121: 8536201090 | N121: 0.25 | O121: 0.25
A122: 100385 | B122: Ex9BH 1PN C25 | C122: Instalační jistič 10 kA, charakteristika C, 25 A, 1+Npól | D122: NAA | E122: 254 | F122: 0 | G122: 254 | H122: 8592765003867 | I122: 6 | J122: 18592765003864 | K122: 72 | L122: 28592765003861 | M122: 8536201090 | N122: 0.25 | O122: 0.25
A123: 100386 | B123: Ex9BH 1PN C32 | C123: Instalační jistič 10 kA, charakteristika C, 32 A, 1+Npól | D123: NAA | E123: 306 | F123: 0 | G123: 306 | H123: 8592765003874 | I123: 6 | J123: 18592765003871 | K123: 72 | L123: 28592765003878 | M123: 8536201090 | N123: 0.23 | O123: 0.23
A124: 100387 | B124: Ex9BH 1PN C40 | C124: Instalační jistič 10 kA, charakteristika C, 40 A, 1+Npól | D124: NAA | E124: 311 | F124: 0 | G124: 311 | H124: 8592765003881 | I124: 6 | J124: 18592765003888 | K124: 72 | L124: 28592765003885 | M124: 8536201090 | N124: 0.25 | O124: 0.25
A125: 100388 | B125: Ex9BH 1PN C50 | C125: Instalační jistič 10 kA, charakteristika C, 50 A, 1+Npól | D125: NAA | E125: 917 | F125: 0 | G125: 917 | H125: 8592765003898 | I125: 6 | J125: 18592765003895 | K125: 72 | L125: 28592765003892 | M125: 8536201090 | N125: 0.25 | O125: 0.25
A126: 100389 | B126: Ex9BH 1PN C63 | C126: Instalační jistič 10 kA, charakteristika C, 63 A, 1+Npól | D126: NAA | E126: 923 | F126: 0 | G126: 923 | H126: 8592765003904 | I126: 6 | J126: 18592765003901 | K126: 72 | L126: 28592765003908 | M126: 8536201090 | N126: 0.25 | O126: 0.25
A127: 100390 | B127: Ex9BH 2P C1 | C127: Instalační jistič 10 kA, charakteristika C, 1 A, 2pól | D127: NAA | E127: 372 | F127: 0 | G127: 372 | H127: 8592765003911 | I127: 6 | J127: 18592765003918 | K127: 72 | L127: 28592765003915 | M127: 8536201090 | N127: 0.25 | O127: 0.25
A128: 100391 | B128: Ex9BH 2P C2 | C128: Instalační jistič 10 kA, charakteristika C, 2 A, 2pól | D128: NAA | E128: 371 | F128: 0 | G128: 371 | H128: 8592765003928 | I128: 6 | J128: 18592765003925 | K128: 72 | L128: 28592765003922 | M128: 8536201090 | N128: 0.25 | O128: 0.25
A129: 100392 | B129: Ex9BH 2P C3 | C129: Instalační jistič 10 kA, charakteristika C, 3 A, 2pól | D129: NAA | E129: 370 | F129: 0 | G129: 370 | H129: 8592765003935 | I129: 6 | J129: 18592765003932 | K129: 72 | L129: 28592765003939 | M129: 8536201090 | N129: 0.25 | O129: 0.25
A130: 100393 | B130: Ex9BH 2P C4 | C130: Instalační jistič 10 kA, charakteristika C, 4 A, 2pól | D130: NAA | E130: 369 | F130: 0 | G130: 369 | H130: 8592765003942 | I130: 6 | J130: 18592765003949 | K130: 72 | L130: 28592765003946 | M130: 8536201090 | N130: 0.25 | O130: 0.25
A131: 100394 | B131: Ex9BH 2P C6 | C131: Instalační jistič 10 kA, charakteristika C, 6 A, 2pól | D131: NAA | E131: 368 | F131: 0 | G131: 368 | H131: 8592765003959 | I131: 6 | J131: 18592765003956 | K131: 72 | L131: 28592765003953 | M131: 8536201090 | N131: 0.25 | O131: 0.25
A132: 100395 | B132: Ex9BH 2P C8 | C132: Instalační jistič 10 kA, charakteristika C, 8 A, 2pól | D132: NAA | E132: 368 | F132: 0 | G132: 368 | H132: 8592765003966 | I132: 6 | J132: 18592765003963 | K132: 72 | L132: 28592765003960 | M132: 8536201090 | N132: 0.25 | O132: 0.25
A133: 100396 | B133: Ex9BH 2P C10 | C133: Instalační jistič 10 kA, charakteristika C, 10 A, 2pól | D133: NAA | E133: 339 | F133: 0 | G133: 339 | H133: 8592765003973 | I133: 6 | J133: 18592765003970 | K133: 72 | L133: 28592765003977 | M133: 8536201090 | N133: 0.25 | O133: 0.25
A134: 100397 | B134: Ex9BH 2P C13 | C134: Instalační jistič 10 kA, charakteristika C, 13 A, 2pól | D134: NAA | E134: 343 | F134: 0 | G134: 343 | H134: 8592765003980 | I134: 6 | J134: 18592765003987 | K134: 72 | L134: 28592765003984 | M134: 8536201090 | N134: 0.25 | O134: 0.25
A135: 100398 | B135: Ex9BH 2P C16 | C135: Instalační jistič 10 kA, charakteristika C, 16 A, 2pól | D135: NAA | E135: 339 | F135: =NAA -> 0 | G135: =E135*(1-F135) -> 339 | H135: 8592765003997 | I135: 6 | J135: 18592765003994 | K135: 72 | L135: 28592765003991 | M135: 8536201090 | N135: 0.25 | O135: 0.25
A136: 100399 | B136: Ex9BH 2P C20 | C136: Instalační jistič 10 kA, charakteristika C, 20 A, 2pól | D136: NAA | E136: 343 | F136: 0 | G136: 343 | H136: 8592765004000 | I136: 6 | J136: 18592765004007 | K136: 72 | L136: 28592765004004 | M136: 8536201090 | N136: 0.25 | O136: 0.25
A137: 100400 | B137: Ex9BH 2P C25 | C137: Instalační jistič 10 kA, charakteristika C, 25 A, 2pól | D137: NAA | E137: 345 | F137: 0 | G137: 345 | H137: 8592765004017 | I137: 6 | J137: 18592765004014 | K137: 72 | L137: 28592765004011 | M137: 8536201090 | N137: 0.25 | O137: 0.25
A138: 100401 | B138: Ex9BH 2P C32 | C138: Instalační jistič 10 kA, charakteristika C, 32 A, 2pól | D138: NAA | E138: 445 | F138: 0 | G138: 445 | H138: 8592765004024 | I138: 6 | J138: 18592765004021 | K138: 72 | L138: 28592765004028 | M138: 8536201090 | N138: 0.25 | O138: 0.25
A139: 100402 | B139: Ex9BH 2P C40 | C139: Instalační jistič 10 kA, charakteristika C, 40 A, 2pól | D139: NAA | E139: 448 | F139: 0 | G139: 448 | H139: 8592765004031 | I139: 6 | J139: 18592765004038 | K139: 72 | L139: 28592765004035 | M139: 8536201090 | N139: 0.25 | O139: 0.25
A140: 100403 | B140: Ex9BH 2P C50 | C140: Instalační jistič 10 kA, charakteristika C, 50 A, 2pól | D140: NAA | E140: 1128 | F140: 0 | G140: 1128 | H140: 8592765004048 | I140: 6 | J140: 18592765004045 | K140: 72 | L140: 28592765004042 | M140: 8536201090 | N140: 0.25 | O140: 0.25
A141: 100404 | B141: Ex9BH 2P C63 | C141: Instalační jistič 10 kA, charakteristika C, 63 A, 2pól | D141: NAA | E141: 1134 | F141: 0 | G141: 1134 | H141: 8592765004055 | I141: 6 | J141: 18592765004052 | K141: 72 | L141: 28592765004059 | M141: 8536201090 | N141: 0.25 | O141: 0.25
A142: 100405 | B142: Ex9BH 3P C1 | C142: Instalační jistič 10 kA, charakteristika C, 1 A, 3pól | D142: NAA | E142: 479 | F142: 0 | G142: 479 | H142: 8592765004062 | I142: 4 | J142: 18592765004069 | K142: 48 | L142: 28592765004066 | M142: 8536201090 | N142: 0.33 | O142: 0.33
A143: 100406 | B143: Ex9BH 3P C2 | C143: Instalační jistič 10 kA, charakteristika C, 2 A, 3pól | D143: NAA | E143: 475 | F143: 0 | G143: 475 | H143: 8592765004079 | I143: 4 | J143: 18592765004076 | K143: 48 | L143: 28592765004073 | M143: 8536201090 | N143: 0.33 | O143: 0.33
A144: 100407 | B144: Ex9BH 3P C3 | C144: Instalační jistič 10 kA, charakteristika C, 3 A, 3pól | D144: NAA | E144: 473 | F144: 0 | G144: 473 | H144: 8592765004086 | I144: 4 | J144: 18592765004083 | K144: 48 | L144: 28592765004080 | M144: 8536201090 | N144: 0.33 | O144: 0.33
A145: 100408 | B145: Ex9BH 3P C4 | C145: Instalační jistič 10 kA, charakteristika C, 4 A, 3pól | D145: NAA | E145: 470 | F145: 0 | G145: 470 | H145: 8592765004093 | I145: 4 | J145: 18592765004090 | K145: 48 | L145: 28592765004097 | M145: 8536201090 | N145: 0.33 | O145: 0.33
A146: 100409 | B146: Ex9BH 3P C6 | C146: Instalační jistič 10 kA, charakteristika C, 6 A, 3pól | D146: NAA | E146: 453 | F146: 0 | G146: 453 | H146: 8592765004109 | I146: 4 | J146: 18592765004106 | K146: 48 | L146: 28592765004103 | M146: 8536201090 | N146: 0.33 | O146: 0.33
A147: 100410 | B147: Ex9BH 3P C8 | C147: Instalační jistič 10 kA, charakteristika C, 8 A, 3pól | D147: NAA | E147: 453 | F147: 0 | G147: 453 | H147: 8592765004116 | I147: 4 | J147: 18592765004113 | K147: 48 | L147: 28592765004110 | M147: 8536201090 | N147: 0.33 | O147: 0.33
A148: 100411 | B148: Ex9BH 3P C10 | C148: Instalační jistič 10 kA, charakteristika C, 10 A, 3pól | D148: NAA | E148: 414 | F148: 0 | G148: 414 | H148: 8592765004123 | I148: 4 | J148: 18592765004120 | K148: 48 | L148: 28592765004127 | M148: 8536201090 | N148: 0.33 | O148: 0.33
A149: 100412 | B149: Ex9BH 3P C13 | C149: Instalační jistič 10 kA, charakteristika C, 13 A, 3pól | D149: NAA | E149: 402 | F149: 0 | G149: 402 | H149: 8592765004130 | I149: 4 | J149: 18592765004137 | K149: 48 | L149: 28592765004134 | M149: 8536201090 | N149: 0.33 | O149: 0.33
A150: 100413 | B150: Ex9BH 3P C16 | C150: Instalační jistič 10 kA, charakteristika C, 16 A, 3pól | D150: NAA | E150: 395 | F150: 0 | G150: 395 | H150: 8592765004147 | I150: 4 | J150: 18592765004144 | K150: 48 | L150: 28592765004141 | M150: 8536201090 | N150: 0.33 | O150: 0.33
A151: 100414 | B151: Ex9BH 3P C20 | C151: Instalační jistič 10 kA, charakteristika C, 20 A, 3pól | D151: NAA | E151: 402 | F151: 0 | G151: 402 | H151: 8592765004154 | I151: 4 | J151: 18592765004151 | K151: 48 | L151: 28592765004158 | M151: 8536201090 | N151: 0.33 | O151: 0.33
A152: 100415 | B152: Ex9BH 3P C25 | C152: Instalační jistič 10 kA, charakteristika C, 25 A, 3pól | D152: NAA | E152: 413 | F152: 0 | G152: 413 | H152: 8592765004161 | I152: 4 | J152: 18592765004168 | K152: 48 | L152: 28592765004165 | M152: 8536201090 | N152: 0.33 | O152: 0.33
A153: 100416 | B153: Ex9BH 3P C32 | C153: Instalační jistič 10 kA, charakteristika C, 32 A, 3pól | D153: NAA | E153: 414 | F153: 0 | G153: 414 | H153: 8592765004178 | I153: 4 | J153: 18592765004175 | K153: 48 | L153: 28592765004172 | M153: 8536201090 | N153: 0.34 | O153: 0.34
A154: 100417 | B154: Ex9BH 3P C40 | C154: Instalační jistič 10 kA, charakteristika C, 40 A, 3pól | D154: NAA | E154: 568 | F154: 0 | G154: 568 | H154: 8592765004185 | I154: 4 | J154: 18592765004182 | K154: 48 | L154: 28592765004189 | M154: 8536201090 | N154: 0.34 | O154: 0.34
A155: 100418 | B155: Ex9BH 3P C50 | C155: Instalační jistič 10 kA, charakteristika C, 50 A, 3pól | D155: NAA | E155: 870 | F155: 0 | G155: 870 | H155: 8592765004192 | I155: 4 | J155: 18592765004199 | K155: 48 | L155: 28592765004196 | M155: 8536201090 | N155: 0.34 | O155: 0.34
A156: 100419 | B156: Ex9BH 3P C63 | C156: Instalační jistič 10 kA, charakteristika C, 63 A, 3pól | D156: NAA | E156: 887 | F156: 0 | G156: 887 | H156: 8592765004208 | I156: 4 | J156: 18592765004205 | K156: 48 | L156: 28592765004202 | M156: 8536201090 | N156: 0.37 | O156: 0.37
A157: 100420 | B157: Ex9BH 3PN C1 | C157: Instalační jistič 10 kA, charakteristika C, 1 A, 3+Npól | D157: NAA | E157: 838 | F157: 0 | G157: 838 | H157: 8592765004215 | I157: 3 | J157: 18592765004212 | K157: 36 | L157: 28592765004219 | M157: 8536201090 | N157: 0.44 | O157: 0.44
A158: 100421 | B158: Ex9BH 3PN C2 | C158: Instalační jistič 10 kA, charakteristika C, 2 A, 3+Npól | D158: NAA | E158: 835 | F158: 0 | G158: 835 | H158: 8592765004222 | I158: 3 | J158: 18592765004229 | K158: 36 | L158: 28592765004226 | M158: 8536201090 | N158: 0.44 | O158: 0.44
A159: 100422 | B159: Ex9BH 3PN C3 | C159: Instalační jistič 10 kA, charakteristika C, 3 A, 3+Npól | D159: NAA | E159: 834 | F159: 0 | G159: 834 | H159: 8592765004239 | I159: 3 | J159: 18592765004236 | K159: 36 | L159: 28592765004233 | M159: 8536201090 | N159: 0.44 | O159: 0.44
A160: 100423 | B160: Ex9BH 3PN C4 | C160: Instalační jistič 10 kA, charakteristika C, 4 A, 3+Npól | D160: NAA | E160: 832 | F160: 0 | G160: 832 | H160: 8592765004246 | I160: 3 | J160: 18592765004243 | K160: 36 | L160: 28592765004240 | M160: 8536201090 | N160: 0.44 | O160: 0.44
A161: 100424 | B161: Ex9BH 3PN C6 | C161: Instalační jistič 10 kA, charakteristika C, 6 A, 3+Npól | D161: NAA | E161: 829 | F161: 0 | G161: 829 | H161: 8592765004253 | I161: 3 | J161: 18592765004250 | K161: 36 | L161: 28592765004257 | M161: 8536201090 | N161: 0.44 | O161: 0.44
A162: 100425 | B162: Ex9BH 3PN C8 | C162: Instalační jistič 10 kA, charakteristika C, 8 A, 3+Npól | D162: NAA | E162: 826 | F162: 0 | G162: 826 | H162: 8592765004260 | I162: 3 | J162: 18592765004267 | K162: 36 | L162: 28592765004264 | M162: 8536201090 | N162: 0.44 | O162: 0.44
A163: 100426 | B163: Ex9BH 3PN C10 | C163: Instalační jistič 10 kA, charakteristika C, 10 A, 3+Npól | D163: NAA | E163: 630 | F163: 0 | G163: 630 | H163: 8592765004277 | I163: 3 | J163: 18592765004274 | K163: 36 | L163: 28592765004271 | M163: 8536201090 | N163: 0.44 | O163: 0.44
A164: 100427 | B164: Ex9BH 3PN C13 | C164: Instalační jistič 10 kA, charakteristika C, 13 A, 3+Npól | D164: NAA | E164: 632 | F164: 0 | G164: 632 | H164: 8592765004284 | I164: 3 | J164: 18592765004281 | K164: 36 | L164: 28592765004288 | M164: 8536201090 | N164: 0.44 | O164: 0.44
A165: 100428 | B165: Ex9BH 3PN C16 | C165: Instalační jistič 10 kA, charakteristika C, 16 A, 3+Npól | D165: NAA | E165: 630 | F165: 0 | G165: 630 | H165: 8592765004291 | I165: 3 | J165: 18592765004298 | K165: 36 | L165: 28592765004295 | M165: 8536201090 | N165: 0.44 | O165: 0.44
A166: 100429 | B166: Ex9BH 3PN C20 | C166: Instalační jistič 10 kA, charakteristika C, 20 A, 3+Npól | D166: NAA | E166: 632 | F166: 0 | G166: 632 | H166: 8592765004307 | I166: 3 | J166: 18592765004304 | K166: 36 | L166: 28592765004301 | M166: 8536201090 | N166: 0.44 | O166: 0.44
A167: 100430 | B167: Ex9BH 3PN C25 | C167: Instalační jistič 10 kA, charakteristika C, 25 A, 3+Npól | D167: NAA | E167: 634 | F167: 0 | G167: 634 | H167: 8592765004314 | I167: 3 | J167: 18592765004311 | K167: 36 | L167: 28592765004318 | M167: 8536201090 | N167: 0.44 | O167: 0.44
A168: 100431 | B168: Ex9BH 3PN C32 | C168: Instalační jistič 10 kA, charakteristika C, 32 A, 3+Npól | D168: NAA | E168: 824 | F168: 0 | G168: 824 | H168: 8592765004321 | I168: 3 | J168: 18592765004328 | K168: 36 | L168: 28592765004325 | M168: 8536201090 | N168: 0.46 | O168: 0.46
A169: 100432 | B169: Ex9BH 3PN C40 | C169: Instalační jistič 10 kA, charakteristika C, 40 A, 3+Npól | D169: NAA | E169: 831 | F169: 0 | G169: 831 | H169: 8592765004338 | I169: 3 | J169: 18592765004335 | K169: 36 | L169: 28592765004332 | M169: 8536201090 | N169: 0.46 | O169: 0.46
A170: 100433 | B170: Ex9BH 3PN C50 | C170: Instalační jistič 10 kA, charakteristika C, 50 A, 3+Npól | D170: NAA | E170: 1508 | F170: 0 | G170: 1508 | H170: 8592765004345 | I170: 3 | J170: 18592765004342 | K170: 36 | L170: 28592765004349 | M170: 8536201090 | N170: 0.46 | O170: 0.46
A171: 100434 | B171: Ex9BH 3PN C63 | C171: Instalační jistič 10 kA, charakteristika C, 63 A, 3+Npól | D171: NAA | E171: 1523 | F171: 0 | G171: 1523 | H171: 8592765004352 | I171: 3 | J171: 18592765004359 | K171: 36 | L171: 28592765004356 | M171: 8536201090 | N171: 0.5 | O171: 0.5
A172: 100435 | B172: Ex9BH 4P C1 | C172: Instalační jistič 10 kA, charakteristika C, 1 A, 4pól | D172: NAA | E172: 890 | F172: 0 | G172: 890 | H172: 8592765004369 | I172: 3 | J172: 18592765004366 | K172: 36 | L172: 28592765004363 | M172: 8536201090 | N172: 0.44 | O172: 0.44
A173: 100436 | B173: Ex9BH 4P C2 | C173: Instalační jistič 10 kA, charakteristika C, 2 A, 4pól | D173: NAA | E173: 882 | F173: 0 | G173: 882 | H173: 8592765004376 | I173: 3 | J173: 18592765004373 | K173: 36 | L173: 28592765004370 | M173: 8536201090 | N173: 0.44 | O173: 0.44
A174: 100437 | B174: Ex9BH 4P C3 | C174: Instalační jistič 10 kA, charakteristika C, 3 A, 4pól | D174: NAA | E174: 876 | F174: 0 | G174: 876 | H174: 8592765004383 | I174: 3 | J174: 18592765004380 | K174: 36 | L174: 28592765004387 | M174: 8536201090 | N174: 0.44 | O174: 0.44
A175: 100438 | B175: Ex9BH 4P C4 | C175: Instalační jistič 10 kA, charakteristika C, 4 A, 4pól | D175: NAA | E175: 870 | F175: 0 | G175: 870 | H175: 8592765004390 | I175: 3 | J175: 18592765004397 | K175: 36 | L175: 28592765004394 | M175: 8536201090 | N175: 0.44 | O175: 0.44
A176: 100439 | B176: Ex9BH 4P C6 | C176: Instalační jistič 10 kA, charakteristika C, 6 A, 4pól | D176: NAA | E176: 865 | F176: 0 | G176: 865 | H176: 8592765004406 | I176: 3 | J176: 18592765004403 | K176: 36 | L176: 28592765004400 | M176: 8536201090 | N176: 0.44 | O176: 0.44
A177: 100440 | B177: Ex9BH 4P C8 | C177: Instalační jistič 10 kA, charakteristika C, 8 A, 4pól | D177: NAA | E177: 863 | F177: 0 | G177: 863 | H177: 8592765004413 | I177: 3 | J177: 18592765004410 | K177: 36 | L177: 28592765004417 | M177: 8536201090 | N177: 0.44 | O177: 0.44
A178: 100441 | B178: Ex9BH 4P C10 | C178: Instalační jistič 10 kA, charakteristika C, 10 A, 4pól | D178: NAA | E178: 655 | F178: 0 | G178: 655 | H178: 8592765004420 | I178: 3 | J178: 18592765004427 | K178: 36 | L178: 28592765004424 | M178: 8536201090 | N178: 0.44 | O178: 0.44
A179: 100442 | B179: Ex9BH 4P C13 | C179: Instalační jistič 10 kA, charakteristika C, 13 A, 4pól | D179: NAA | E179: 659 | F179: 0 | G179: 659 | H179: 8592765004437 | I179: 3 | J179: 18592765004434 | K179: 36 | L179: 28592765004431 | M179: 8536201090 | N179: 0.44 | O179: 0.44
A180: 100443 | B180: Ex9BH 4P C16 | C180: Instalační jistič 10 kA, charakteristika C, 16 A, 4pól | D180: NAA | E180: 654 | F180: 0 | G180: 654 | H180: 8592765004444 | I180: 3 | J180: 18592765004441 | K180: 36 | L180: 28592765004448 | M180: 8536201090 | N180: 0.44 | O180: 0.44
A181: 100444 | B181: Ex9BH 4P C20 | C181: Instalační jistič 10 kA, charakteristika C, 20 A, 4pól | D181: NAA | E181: 659 | F181: 0 | G181: 659 | H181: 8592765004451 | I181: 3 | J181: 18592765004458 | K181: 36 | L181: 28592765004455 | M181: 8536201090 | N181: 0.44 | O181: 0.44
A182: 100445 | B182: Ex9BH 4P C25 | C182: Instalační jistič 10 kA, charakteristika C, 25 A, 4pól | D182: NAA | E182: 664 | F182: 0 | G182: 664 | H182: 8592765004468 | I182: 3 | J182: 18592765004465 | K182: 36 | L182: 28592765004462 | M182: 8536201090 | N182: 0.44 | O182: 0.44
A183: 100446 | B183: Ex9BH 4P C32 | C183: Instalační jistič 10 kA, charakteristika C, 32 A, 4pól | D183: NAA | E183: 856 | F183: 0 | G183: 856 | H183: 8592765004475 | I183: 3 | J183: 18592765004472 | K183: 36 | L183: 28592765004479 | M183: 8536201090 | N183: 0.46 | O183: 0.46
A184: 100447 | B184: Ex9BH 4P C40 | C184: Instalační jistič 10 kA, charakteristika C, 40 A, 4pól | D184: NAA | E184: 865 | F184: 0 | G184: 865 | H184: 8592765004482 | I184: 3 | J184: 18592765004489 | K184: 36 | L184: 28592765004486 | M184: 8536201090 | N184: 0.46 | O184: 0.46
A185: 100448 | B185: Ex9BH 4P C50 | C185: Instalační jistič 10 kA, charakteristika C, 50 A, 4pól | D185: NAA | E185: 1627 | F185: 0 | G185: 1627 | H185: 8592765004499 | I185: 3 | J185: 18592765004496 | K185: 36 | L185: 28592765004493 | M185: 8536201090 | N185: 0.46 | O185: 0.46
A186: 100449 | B186: Ex9BH 4P C63 | C186: Instalační jistič 10 kA, charakteristika C, 63 A, 4pól | D186: NAA | E186: 1641 | F186: 0 | G186: 1641 | H186: 8592765004505 | I186: 3 | J186: 18592765004502 | K186: 36 | L186: 28592765004509 | M186: 8536201090 | N186: 0.5 | O186: 0.5
A187: 100450 | B187: Ex9BH 1P D1 | C187: Instalační jistič 10 kA, charakteristika D, 1 A, 1pól | D187: NAA | E187: 183 | F187: 0 | G187: 183 | H187: 8592765004512 | I187: 12 | J187: 18592765004519 | K187: 144 | L187: 28592765004516 | M187: 8536201090 | N187: 0.11 | O187: 0.11
A188: 100451 | B188: Ex9BH 1P D2 | C188: Instalační jistič 10 kA, charakteristika D, 2 A, 1pól | D188: NAA | E188: 182 | F188: 0 | G188: 182 | H188: 8592765004529 | I188: 12 | J188: 18592765004526 | K188: 144 | L188: 28592765004523 | M188: 8536201090 | N188: 0.11 | O188: 0.11
A189: 100452 | B189: Ex9BH 1P D3 | C189: Instalační jistič 10 kA, charakteristika D, 3 A, 1pól | D189: NAA | E189: 183 | F189: 0 | G189: 183 | H189: 8592765004536 | I189: 12 | J189: 18592765004533 | K189: 144 | L189: 28592765004530 | M189: 8536201090 | N189: 0.11 | O189: 0.11
A190: 100453 | B190: Ex9BH 1P D4 | C190: Instalační jistič 10 kA, charakteristika D, 4 A, 1pól | D190: NAA | E190: 183 | F190: 0 | G190: 183 | H190: 8592765004543 | I190: 12 | J190: 18592765004540 | K190: 144 | L190: 28592765004547 | M190: 8536201090 | N190: 0.11 | O190: 0.11
A191: 100454 | B191: Ex9BH 1P D6 | C191: Instalační jistič 10 kA, charakteristika D, 6 A, 1pól | D191: NAA | E191: 142 | F191: 0 | G191: 142 | H191: 8592765004550 | I191: 12 | J191: 18592765004557 | K191: 144 | L191: 28592765004554 | M191: 8536201090 | N191: 0.11 | O191: 0.11
A192: 100455 | B192: Ex9BH 1P D8 | C192: Instalační jistič 10 kA, charakteristika D, 8 A, 1pól | D192: NAA | E192: 141 | F192: 0 | G192: 141 | H192: 8592765004567 | I192: 12 | J192: 18592765004564 | K192: 144 | L192: 28592765004561 | M192: 8536201090 | N192: 0.11 | O192: 0.11
A193: 100456 | B193: Ex9BH 1P D10 | C193: Instalační jistič 10 kA, charakteristika D, 10 A, 1pól | D193: NAA | E193: 125 | F193: 0 | G193: 125 | H193: 8592765004574 | I193: 12 | J193: 18592765004571 | K193: 144 | L193: 28592765004578 | M193: 8536201090 | N193: 0.11 | O193: 0.11
A194: 100457 | B194: Ex9BH 1P D13 | C194: Instalační jistič 10 kA, charakteristika D, 13 A, 1pól | D194: NAA | E194: 142 | F194: 0 | G194: 142 | H194: 8592765004581 | I194: 12 | J194: 18592765004588 | K194: 144 | L194: 28592765004585 | M194: 8536201090 | N194: 0.11 | O194: 0.11
A195: 100458 | B195: Ex9BH 1P D16 | C195: Instalační jistič 10 kA, charakteristika D, 16 A, 1pól | D195: NAA | E195: 121 | F195: 0 | G195: 121 | H195: 8592765004598 | I195: 12 | J195: 18592765004595 | K195: 144 | L195: 28592765004592 | M195: 8536201090 | N195: 0.11 | O195: 0.11
A196: 100459 | B196: Ex9BH 1P D20 | C196: Instalační jistič 10 kA, charakteristika D, 20 A, 1pól | D196: NAA | E196: 142 | F196: 0 | G196: 142 | H196: 8592765004604 | I196: 12 | J196: 18592765004601 | K196: 144 | L196: 28592765004608 | M196: 8536201090 | N196: 0.11 | O196: 0.11
A197: 100460 | B197: Ex9BH 1P D25 | C197: Instalační jistič 10 kA, charakteristika D, 25 A, 1pól | D197: NAA | E197: 141 | F197: 0 | G197: 141 | H197: 8592765004611 | I197: 12 | J197: 18592765004618 | K197: 144 | L197: 28592765004615 | M197: 8536201090 | N197: 0.11 | O197: 0.11
A198: 100461 | B198: Ex9BH 1P D32 | C198: Instalační jistič 10 kA, charakteristika D, 32 A, 1pól | D198: NAA | E198: 209 | F198: 0 | G198: 209 | H198: 8592765004628 | I198: 12 | J198: 18592765004625 | K198: 144 | L198: 28592765004622 | M198: 8536201090 | N198: 0.11 | O198: 0.11
A199: 100462 | B199: Ex9BH 1P D40 | C199: Instalační jistič 10 kA, charakteristika D, 40 A, 1pól | D199: NAA | E199: 216 | F199: =NAA -> 0 | G199: =E199*(1-F199) -> 216 | H199: 8592765004635 | I199: 12 | J199: 18592765004632 | K199: 144 | L199: 28592765004639 | M199: 8536201090 | N199: 0.11 | O199: 0.11
A200: 100463 | B200: Ex9BH 1P D50 | C200: Instalační jistič 10 kA, charakteristika D, 50 A, 1pól | D200: NAA | E200: 328 | F200: 0 | G200: 328 | H200: 8592765004642 | I200: 12 | J200: 18592765004649 | K200: 144 | L200: 28592765004646 | M200: 8536201090 | N200: 0.11 | O200: 0.11
A201: 100464 | B201: Ex9BH 1P D63 | C201: Instalační jistič 10 kA, charakteristika D, 63 A, 1pól | D201: NAA | E201: 331 | F201: 0 | G201: 331 | H201: 8592765004659 | I201: 12 | J201: 18592765004656 | K201: 144 | L201: 28592765004653 | M201: 8536201090 | N201: 0.12 | O201: 0.12
A202: 100465 | B202: Ex9BH 1PN D1 | C202: Instalační jistič 10 kA, charakteristika D, 1 A, 1+Npól | D202: NAA | E202: 305 | F202: 0 | G202: 305 | H202: 8592765004666 | I202: 6 | J202: 18592765004663 | K202: 72 | L202: 28592765004660 | M202: 8536201090 | N202: 0.22 | O202: 0.22
... 4238 more rows

Sheet Rabatové podmínky
A1: Rabatová skupina | B1: Popis | C1: Sleva
A2: NA | B2: Instalační přístroje | C2: 0
A3: NAA | B3: Instalační jističe 10 kA | C3: =NA -> 0
A4: NAB | B4: Instalační jističe 6 kA | C4: 0
A5: NAC | B5: Proudové chrániče 10 kA | C5: 0
A6: NAD | B6: Proudové chrániče 6 kA | C6: 0
A7: NAE | B7: Proudové chrániče s nadproudovou ochranou 10 kA | C7: 0
A8: NAF | B8: Proudové chrániče s nadproudovou ochranou 6 kA | C8: 0
A9: NAG | B9: Chráničové moduly | C9: 0
A10: NAH | B10: Modulární hlavní vypínače | C10: 0
A11: NAI | B11: Instalační jističe Ex9PN-N, 6 kA | C11: 0
A12: NAL | B12: DC instalační jističe 10 kA, nepolarizované | C12: 0
A13: NAM | B13: DC instalační jističe 6 kA, nepolarizované | C13: 0
A14: NAN | B14: DC instalační vypínač | C14: 0
A15: NAO | B15: DC svodiče přepětí třídy 1+2 a 2 pro PV | C15: 0
A16: NAP | B16: DC instalační jističe 10 kA pro PV, nepolarizované | C16: 0
A17: NAQ | B17: DC instalační jističe 6 kA pro PV, nepolarizované | C17: 0
A18: NAR | B18: AC svodiče přepětí třídy 1+2 a 2 | C18: 0
A19: NAS | B19: Instalační relé a stykače | C19: 0
A20: NAU | B20: Přepínače, světelné návěstí a zvonky | C20: 0
A21: NAV | B21: DC instalační jističe 10 kA, polarizované | C21: 0
A22: NAW | B22: Instalační jističe do 125 A | C22: 0
A23: NAX | B23: Instalační časové, soumrakové a schodišťové spínače | C23: 0
A24: NAZ | B24: Elektroměry | C24: 0
A25: NAAA | B25: Jednomodulový Elektronický proud. chránič s nadpr. Ochr | C25: 0
A26: NAAB | B26: Úzký instalační jistič 6kA | C26: 0
A27: NAAC | B27: Zdroje napětí | C27: 0
A29: NB | B29: Průmyslové spínací přístroje | C29: 0
A30: NBA | B30: Stykače, reverzační stykače | C30: =NB -> 0
A31: NBB | B31: Nadproudová relé | C31: 0
A32: NBC | B32: Stykače pro spínání kapacitních zátěží | C32: 0
A33: NBD | B33: Stykače s řízenou spotřebou | C33: 0
A34: NBF | B34: Panelové přístroje | C34: 0
A35: NBG | B35: Motorové spouštěče | C35: 0
A36: NBH | B36: Zásuvná relé | C36: 0
A37: NBI | B37: Instalační stykače s ručním ovládáním | C37: 0
A39: NC | B39: Výkonové jističe | C39: 0
A40: NCA | B40: Kompaktní výkonové jističe | C40: =NC -> 0
A41: NCB | B41: DC kompaktní výkonové jističe | C41: 0
A42: NCC | B42: Vzduchové jističe a odpínače | C42: 0
A43: NCD | B43: AC odpínače | C43: 0
A44: NCE | B44: DC odpínače | C44: 0
A45: NCF | B45: Kompaktní výkonové jističe s elektronickou spouští | C45: 0
A47: ND | B47: Rozváděčové skříně a propojovací systémy | C47: 0
A48: NDA | B48: Plastové rozvodnice | C48: =ND -> 0
A49: NDB | B49: Propojovací systémy | C49: 0
A50: NDC | B50: Plastové rozvodnice s ocelovými dveřmi | C50: 0
A51: NDE | B51: Svorkovnice a rozvodné svorky | C51: 0
A52: NDD | B52: Velkoobsahové rozvodnice | C52: 0
A53: NDF | B53: Plastové rozvodnice pro montáž do dutých stěn | C53: 0
A54: NDG | B54: GRP Rozvodnice | C54: 0
A55: NDH | B55: Oceloplechové rozvaděče IP66 | C55: 0
A56: NDAA | B56: Plastové rozvodnice PHS | C56: 0
A58: NE | B58: Pojistkové systémy | C58: 0
A59: NEA | B59: DC Pojistkové odpínače | C59: =NE -> 0
A60: NEB | B60: Pojistkové odpínače | C60: =NE -> 0
A62: NF | B62: Rozváděče | C62: 0
A63: NFA | B63: Domovní rozváděče | C63: =NF -> 0
A64: NFB | B64: DC rozváděč pro PV aplikace | C64: =NF -> 0
A66: NG | B66: Fotovoltaické zařízení | C66: 0
A67: NGC | B67: Monitorovací zařízení | C67: =NG -> 0
A68: NGD | B68: EV nabíječky | C68: =NG -> 0

Sheet Objednávka
A1: Objednávka č.
A2: Dodavatel:
A3: NOARK Electric Europe s.r.o. | D3: IČ: 24123846 | F3: DIČ: CZ 24123846
A4: Sezemická 2757/2 | D4: Č. účtu: 51-0016810227/0100 | F4: Banka: 0100
A5: 193 00 Praha 9 | D5: "Jméno obchodníka" | F5: Tel.:
A6: Czech Republic | D6: Email:
A7: Odběratel: | D7: ID zákazníka: | F7: Datum:
A8: NOARK Electric Europe s.r.o. | D8: IČ: | F8: DIČ:
A9: Sezemická 2757/2 | D9: Č. účtu: | F9: Banka:
A10: 193 00 Praha 9 | D10: "Kontaktní osoba" | F10: Tel.:
A11: Czech Republic | D11: Email:
A13: Číslo položky | B13: Objednací číslo | C13: Typové označení | D13: Popis | E13: Rabatová skupina | F13: Cena po slevě (Kč) | G13: Recyklační příspěvek (Kč) | H13: množství | I13: Celková cena (Kč)
I14: 0
E18: Celková cena objednávky: | I18: =SUM(I14:I14) -> 0
A20: Všechny ceny jsou uvedeny bez DPH. Veškerá cenová ujednání, obsah dodávky i způsob dodání se řídí
A21: Všeobecnými obchodními podmínkami, případně individuální Rámcovou smlouvou a jejími dodatky.

Sheet Nabídka
A1: Nabídka č.
A2: Dodavatel:
A3: NOARK Electric Europe s.r.o. | D3: IČ: 24123846 | F3: DIČ: CZ 24123846
A4: Sezemická 2757/2 | D4: Č. účtu: 51-0016810227/0100 | F4: Banka: 0100
A5: 193 00 Praha 9 | D5: "Jméno obchodníka" | F5: Tel.:
A6: Czech Republic | D6: Email:
A7: Odběratel: | D7: ID zákazníka: | F7: Datum:
A8: NOARK Electric Europe s.r.o. | D8: IČ: | F8: DIČ:
A9: Sezemická 2757/2 | D9: Č. účtu: | F9: Banka:
A10: 193 00 Praha 9 | D10: "Kontaktní osoba" | F10: Tel.:
A11: Czech Republic | D11: Email:
A13: Číslo položky | B13: Objednací číslo | C13: Typové označení | D13: Popis | E13: Rabatová skupina | F13: Cena po slevě (Kč) | G13: Recyklační příspěvek (Kč) | H13: Počet kusů | I13: Celková cena (Kč)
I14: 0
E18: Celková cena nabídky: | I18: =SUM(I14:I14) -> 0
A20: Všechny ceny jsou uvedeny bez DPH. Veškerá cenová ujednání, obsah dodávky i způsob dodání se řídí
A21: všeobecnými obchodními podmínkami, případně individuální Rámcovou smlouvou a jejími dodatky.
A22: Cena je platná při odběru veškerého poptávaného zboží i množství najednou.
A23: Pokud se poptávka změní, změní se i nabídka v závislosti na produktech a množství.

Sheet Všeobecné obchodní podmínky
B2: ______________________________________________________
B3: VŠEOBECNÉ OBCHODNÍ PODMÍNKY
B4: ______________________________________________________
B8: I. ÚVODNÍ USTANOVENÍ
B9: 1.1 Tyto všeobecné obchodní podmínky („VOP“) společnosti NOARK Electric Europe s.r.o., se sídlem Praha 9, Horní Počernice, Sezemická 2757/2, PSČ: 193 00, zapsané v obchodním rejstříku vedeném Městským soudem v Praze, oddíl C, vložka 181277 („Prodávající“), vymezují vzájemná práva a povinnosti mezi Prodávajícím a osobou („Kupující“), která má zájem nakoupit zboží nabízené Prodávajícím („Zboží“) v aktuálním ceníku Zboží („Ceník“).
B10: 1.2 Jestliže mezi Prodávajícím a Kupujícím (společně „Strany“, nebo jednotlivě „Strana“) nebyla uzavřena rámcová smlouva („Rámcová smlouva“) stanovující v jednotlivých bodech odchylnou úpravu, představují tyto VOP a Kupní smlouva (jak je definována níže) úplnou a konečnou dohodu Stran o podmínkách dodání a odebrání Zboží. V otázkách zde neupravených bude postupováno v souladu s příslušnými ustanoveními zákona č. 89/2012 Sb., občanský zákoník, v platném znění („ObčZ“).
B12: II. OBJEDNÁVKA ZBOŽÍ
B13: 2.1 Prodávající seznámil Kupujícího s obsahem těchto VOP a Kupující na jejich základě a na základě ostatních informací poskytnutých Prodávajícím projevil prostřednictvím objednávky („Objednávka“) vůli nakoupit od Prodávajícího Zboží za cenu uvedenou v Ceníku či jinak dohodnutou („Kupní cena“).
B14: 2.2 Objednávka bude vždy obsahovat: (a) identifikační údaje osoby oprávněné zastupovat Kupujícího, (b) popis (kód) objednávaného Zboží dle Ceníku a počet kusů, a (c) způsob dodání Zboží, popř. další náležitosti, na kterých se Strany dohodly. Kupující předá Prodávajícímu vyplněnou Objednávku osobně, doručením na adresu sídla Prodávajícího nebo na adresu uvedenou v Rámcové smlouvě, popř. doručí Objednávku Prodávajícímu prostřednictvím emailu či ji doručí Prodávajícímu jiným dohodnutým způsobem mezi Stranami. Objednávka se považuje za návrh na uzavření individuální kupní smlouvy a stává se tak závaznou okamžikem jejího doručení Prodávajícímu. Kupující odesláním Objednávky projevuje výslovný souhlas s tím, aby se kupní smlouva (a veškeré povinnosti z ní vyplývající) řídila VOP. Prodávající je povinen na doručené Objednávce vyznačit den tohoto doručení. Podpisem Prodávajícího na doručené Objednávce dochází k uzavření kupní smlouvy („Kupní smlouva“).
B16: III. KUPNÍ CENA, FAKTURACE, PLATEBNÍ PODMÍNKY
B17: 3.1 Kupující je povinen zaplatit Prodávajícímu za dodané Zboží kupní cenu určenou dle platného Ceníku či jinak dohodnutou plus DPH. Pro vyloučení všech pochybností se sjednává, že kupní ceny jsou uvedené v Ceníku bez DPH.
B18: 3.2 Prodávající je oprávněn Ceník kdykoliv jednostranně měnit, případná změna Ceníku se však nevztahuje na Zboží objednané na základě Objednávek doručených Prodávajícímu přede dnem takové změny. Aktualizovaný Ceník obsahující datum účinnosti bude zveřejněn na internetových stránkách Prodávajícího nebo zaslán Kupujícímu formou emailové zprávy.
B19: 3.3 Nebude-li mezi Prodávajícím a Kupujícím dohodnuto jinak, Kupní cena nezahrnuje náklady na balení, přepravu, manipulaci, instalaci a uvedení Zboží do provozu, ani náklady na likvidaci a recyklaci obalů („Ostatní náklady“). Výše Ostatních nákladů bude uvedena v Ceníku a bude připočtena ke Kupní ceně.
B20: 3.4 Kupní cena je splatná do sedmi (7) dnů ode dne vystavení daňového dokladu (zálohové faktury), který bude splňovat náležitosti vyžadované zákonem 235/2004 Sb., o dani z přidané hodnoty, v platném znění. Příslušná částka bude Kupujícím uhrazena bezhotovostně na účet Prodávajícího uvedený v příslušné faktuře či jinak Kupujícímu oznámený. Zaplacením Kupní ceny se rozumí den připsání celé částky na příslušný účet Prodávajícího.
B21: 3.5 V případě prodlení Kupujícího s úhradou jakékoliv faktury má Prodávající nárok požadovat úhradu smluvní pokuty ve výši 0,05 % z dlužné částky za každý započatý den prodlení.
B23: IV. DODÁNÍ ZBOŽÍ
B24: 4.1 K dodání Zboží může dojít až po úplném zaplacení Kupní ceny. Dodací lhůta činí třicet (30) dnů od zaplacení Kupní ceny, pokud Prodávající nestanoví jinak. Prodávající je oprávněn pozastavit lhůtu pro dodání Zboží po dobu, kdy bude Kupující v prodlení s úhradou jakékoliv dlužné částky vyplývající z Rámcové či Kupní smlouvy. Prodávající není odpovědný za takové prodlení.
B25: 4.2 Prodávající je povinen dodat Kupujícímu Zboží formou jeho odeslání na adresu Kupujícího uvedenou v Kupní smlouvě, případně na jinou adresu písemně oznámenou Prodávajícímu („Zásilka“). Povinnost Prodávajícího se považuje za splněnou a Zboží je tak dodané Kupujícímu okamžikem předání Zásilky prvnímu dopravci k přepravě. Zásilka bude vždy zjevně a dostatečně označena jako zásilka pro Kupujícího a účinky dodání Zboží tak nastanou předáním Zásilky prvnímu dopravci k přepravě. V souladu s ObčZ přechází nebezpečí škody na Zboží na Kupujícího v okamžiku, kdy je Zásilka předána prvnímu dopravci pro přepravu do místa dodání.
B26: 4.3 Pokud není v těchto VOP stanoveno nebo nebude-li mezi Prodávajícím a Kupujícím dohodnuto jinak, na dodání Zboží se uplatní podmínky CIP dle INCOTERMS 2010. Místo určení a dodání budou sjednány v konkrétním případě mezi Prodávajícím a Kupujícím.
B28: V. NABYTÍ VLASTNICKÉHO PRÁVA KE ZBOŽÍ
B29: 5.1 Kupující nabývá vlastnické právo ke Zboží okamžikem, kdy je mu předáno a současně zaplatil celou Kupní cenu.
B31: VI. ZÁRUKA
B32: 6.1 Prodávající poskytuje Kupujícímu záruku za jakost Zboží v délce trvání pěti (5) let ode dne převzetí Zboží Kupujícím („Záruční doba“). Zárukou za jakost se Prodávající zavazuje, že Zboží zakoupené Kupujícím bude po stanovenou Záruční dobu způsobilé pro použití ke smluvenému účelu.
B33: 6.2 Záruka se nevztahuje na vady způsobené či vzniklé zejména v důsledku:
B34: (a) nesprávného skladování Zboží před instalací a uvedením do provozu;
B35: (b) nevhodné, chybně navržené nebo chybně provedené instalace Zboží nebo nesprávné užití Zboží;
B36: (c) opotřebení Zboží spojené s přirozeným během životnosti Zboží a běžným použitím (např. varistoru svodičů přepětí);
B37: (d) nadměrného užití Zboží, tj. užitím v rozporu s doporučením či instrukcemi Prodávajícího (např. překročením počtu deklarovaných pracovních cyklů);
B38: (e) jakékoliv změny či úpravy Zboží, která byly provedeny Kupujícím či jakoukoliv třetí osobou s výjimkou osoby určené či schválené Prodávajícím;
B39: (f) vnějších vlivů mimo kontrolu Prodávajícího
B40: (g) vyšší moci, za níž se považuje zejména záplava, povodeň, požár, zásah blesku, zemětřesení, stávka či občanské nepokoje.
B41: 6.3 Výluky ze Záruky jsou v podrobnostech uvedeny v reklamačním řádu, který je dostupný na internetových stránkách Prodávajícího („Reklamační řád“). V případě rozporu mezi ustanoveními Reklamačního řádu a těchto VOP mají přednost ustanovení Reklamačního řádu.
B42: 6.4 Případné vrácení Zboží Kupujícím zpět Prodávajícímu podléhá souhlasu Prodávajícího. Vrácení Zboží je možné pouze v případě, že je Zboží kompletní a nepoškozené včetně obalů, a to maximálně do jednoho (1) roku od jejich dodání. Cena, za kterou bude Prodávajícím takové Zboží koupeno, bude určena Prodávajícím, a to na základě kontroly provedené Prodávajícím. Veškeré náklady spojené se zpětným prodejem (poštovné, balné atd.) Prodávajícímu nese Kupující. Na výzvu Prodávajícího je Kupující povinen zaplatit Prodávajícímu manipulační poplatek za účelem uhrazení dalších dodatečných nákladů vzniklých Prodávajícímu v souvislosti s vrácením Zboží.
B44: VII. REKLAMACE A EVROPSKÁ ZÁRUKA
B45: 7.1 Kupující je oprávněn uplatnit práva z vadného plnění v souvislosti s vadou Zboží vzniklou v průběhu Záruční doby („Reklamace“) v jakékoliv pobočce Prodávajícího, uvedené v seznamu předloženém Kupujícímu při nákupu Zboží či dostupném na internetových stránkách Prodávajícího („Seznam“). Kupující je za podmínek uvedených v Reklamačním řádu oprávněn uplatnit Reklamaci i mimo území státu, v němž bylo Zboží zakoupeno.
B46: 7.2 Práva z vadného plnění týkající se dodaného množství Zboží je Kupující oprávněn uplatnit nejpozději do čtrnácti (14) dnů ode dne dodání Zboží.
B47: 7.3 Kupující je povinen při převzetí Zboží podle možnosti prohlédnout a případné vady oznámit prostřednictvím protokolu přepravce. Práva z vadného plnění týkající se vad, které Kupující mohl odhalit při převzetí Zboží, zanikají po převzetí Zboží a Reklamace v takovém případě nebude uznána. Prodávající je však oprávněn, nikoliv povinen, uznat Reklamaci i v takovém případě.
B48: 7.4 Kupující bere na vědomí, že výluky ze Záruky, podmínky pro uplatnění nároku na Reklamaci a okolnosti, za kterých nebude Reklamace uznána jako oprávněná, se budou řídit Reklamačním řádem, s jehož obsahem se před uzavřením Kupní smlouvy seznámil.
B50: VIII. ZPRACOVÁNÍ OSOBNÍCH ÚDAJŮ
B51: 8.1 Osobní údaje Kupujícího ve smyslu § 4 písm. a) zákona č. 101/2000 Sb., o ochraně osobních údajů, v platném znění („ZOÚ“), které Kupující poskytl Prodávajícímu v souvislosti s uzavřením a plněním Rámcové smlouvy či Kupní smlouvy, nebo které Prodávající získal jiným zákonným způsobem, popřípadě které vytvořil zpracováním údajů takto získaných („Osobní údaje“), budou Prodávajícím nebo jím pověřeným zpracovatelem zpracovávány za účelem využívání těchto Osobních údajů v souvislosti s předmětem podnikání Prodávajícího, tj. k činnostem přímo nebo nepřímo souvisejícím s jeho obchodní činností včetně nabízení obchodu a péče o zákazníka, a to jak automatizovaně (prostředky výpočetní techniky), tak manuálně. Prodávající bude Osobní údaje zpracovávat po dobu trvání smluvního vztahu založeného Rámcovou smlouvou či Kupní smlouvou a dále po dobu vyžadovanou obecně závaznými právními předpisy. Kupující prohlašuje, že si je vědom rozsahu, způsobu, účelu a délky zpracovávání Osobních údajů jak jsou vymezeny v Rámcové smlouvě, Kupní smlouvě a těchto VOP a svým podpisem na Rámcové či Kupní smlouvě udílí Prodávajícímu výslovný souhlas s takovým zpracováváním Osobních údajů. Kupující dále souhlasí s tím, aby Osobní údaje byly Prodávajícím a každým dalším správcem zpracovávány, rozumí se i vzájemně mezi nimi či třetími osobami předávány (a to i do třetí země), za účelem plnění Rámcové smlouvy či Kupní smlouvy, zkvalitnění péče o Kupujícího, provádění marketingových činností či informování ostatních správců o bonitě a důvěryhodnosti Kupujícího.
B53: IX. ZASÍLÁNÍ OBCHODNÍCH SDĚLENÍ
B54: 9.1 Kupující bere na vědomí a podpisem Rámcové či Kupní smlouvy udílí Prodávajícímu výslovný souhlas k tomu, aby Prodávající elektronickými prostředky na adresy, které Kupující v souvislosti s Rámcovou či Kupní smlouvou Prodávajícímu sdělil, zasílal Kupujícímu obchodní sdělení ve smyslu § 2 písm. f) zákona č. 480/2004 Sb., o některých službách informační společnosti, v platném znění.
B56: X. DORUČOVÁNÍ
B57: 10.1 Není-li stanoveno jinak, všechna oznámení, sdělení či jiná komunikace uskutečněná mezi Stranami musí být písemná. Strany jsou povinny doručovat si navzájem písemnosti na adresy uvedené v Rámcové či Kupní smlouvě nebo jinak sdělené Stranami, a to: (a) osobním doručením s potvrzením přijetí; (b) doporučeným dopisem; (c) prostřednictvím kurýra s potvrzením přijetí; či (d) e-mailem. Úkony mající vliv na vznik, změnu či zánik Rámcové či Kupní smlouvy musejí být doručovány výhradně písemně na adresu sídla či uvedenou v Rámcové smlouvě. Jakékoli oznámení bude považováno za řádně doručené příslušné Straně okamžikem jejího dojití do sféry adresáta. K doručení v souladu s ustanovením § 570 ObčZ dojde i v případě, že Strana, jež je adresátem, vědomě zmaří dojití. Má se za to, že zásilka odeslaná s využitím provozovatele poštovních služeb došla třetí pracovní den po jejím odeslání.
B58: 10.2 Strany se zavazují, neprodleně si písemně sdělit změny jakýchkoliv údajů uvedených v Rámcové či Kupní smlouvě. Jestliže některá ze Stran poruší tuto povinnost, bude se veškerá korespondence odeslaná na poslední známou adresu takové Strany považovat za doručenou i přesto, že se zde adresát již nezdržuje a neměl tak možnost se s obsahem zásilky seznámit.
B60: XI. ZÁVĚREČNÁ USTANOVENÍ
B61: 11.1 Rámcová smlouva a Kupní smlouvy (včetně vztahů z nich vyplývajících) se řídí právem České republiky.
B62: 11.2 Strany se zavazují řešit veškeré vzájemné spory související s Rámcovou či Kupní smlouvou smírnou cestou. V případě, že nebude dosaženo smíru, do (30) dnů ode dne, kdy kterákoli ze Stran písemně informovala druhou Stranu o vzniku sporu a požádala o smírné řešení takovéhoto sporu, budou tyto spory či nesrovnalosti s konečnou platností vyřešeny třemi (3) rozhodci Rozhodčího soudu při Hospodářské komoře České republiky a Agrární komoře České republiky se sídlem v Praze („Rozhodčí soud“) podle pravidel Rozhodčího soudu. Místem konání rozhodčího řízení bude Praha. Rozhodčí řízení bude vedeno v českém jazyce. Každá Strana bude jmenovat jednoho (1) rozhodce. Nejpozději třicet (30) dnů po svém jmenování zvolí dva (2) rozhodci takto jmenovaní třetího rozhodce, který bude předsedou rozhodčího senátu. Pokud kterákoli ze Stran nejmenuje rozhodce ve lhůtě do třiceti (30) dnů ode dne doručení žádosti druhé Strany k jmenování rozhodce, nebo pokud již jmenovaní rozhodci nezvolí třetího rozhodce do třiceti (30) dnů ode dne ustanovení druhého z rozhodců, jmenuje příslušné(ho) rozhodce předseda Rozhodčího soudu Rozhodčí nález je pro Strany závazný. Strany se zavazují splnit povinnosti vyplývající z rozhodčího nálezu. Tato rozhodčí doložka je samostatně vymahatelná. Pokud jsou určité spory podle platných právních předpisů České republiky vyňaty z působnosti Rozhodčího soudu, budou řešeny příslušným soudem.
B63: 11.3 Tyto VOP jsou platné a účinné od 1. ledna 2015.

Sheet Reklamační řád
B2: ______________________________________________________
B3: REKLAMAČNÍ ŘÁD
B4: ______________________________________________________
B7: I. ÚVODNÍ USTANOVENÍ
B8: 1.1 Tento reklamační řád („Reklamační řád“) společnosti NOARK Electric Europe s.r.o., se sídlem Praha 9, Horní Počernice, Sezemická 2757/2, PSČ: 193 00, zapsané v obchodním rejstříku vedeném Městským soudem v Praze, oddíl C, vložka 181277 („Prodávající“), vymezuje vzájemná práva a povinnosti vyplývající z práv z vadného plnění u zboží dodávaného na trh Prodávajícím („Zboží“) a osobou, která toto Zboží za účelem jeho užití zakoupila („Kupující“). Není-li uvedeno jinak, mají výrazy zde použité s počátečním velkým písmenem význam uvedený ve Všeobecných obchodních podmínkách Prodávajícího („VOP“), které jsou dostupné na internetových stránkách Prodávajícího.
B10: II. ZÁRUKA
B11: 2.1 Prodávající poskytuje Kupujícímu záruku za jakost Zboží v délce trvání pěti (5) let ode dne převzetí Zboží Kupujícím (dále jen „Záruční doba“). Zárukou za jakost se Prodávající zavazuje, že Zboží zakoupené Kupujícím bude po stanovenou Záruční dobu způsobilé pro použití ke smluvenému účelu.
B12: 2.2 Záruka se nevztahuje na vady způsobené či vzniklé zejména v důsledku:
B13: (a) nesprávného skladování Zboží před instalací a uvedením do provozu, tj. skladováním na místě a za podmínek, které jsou v rozporu s příslušnou výrobkovou normou a prohlášením o shodě (nestanoví-li Prodávající písemně jinak), podmínkami uvedenými ve VOP, příručce pro uživatele, návodu k použití, katalogu či jiném dokumentu, který pro tyto účely Prodávající vydal či označil;
B14: (b) nevhodné, chybně navržené nebo chybně provedené instalace Zboží, za kterou se považuje zejména instalace provedená v rozporu s podmínkami a požadavky stanovenými v kterémkoliv z dokumentů uvedeným pod bodem a) výše;
B15: (c) nesprávného užití Zboží, za které se považuje zejména užití Zboží v rozporu s kterýmkoliv z dokumentů uvedeným pod bodem a) výše;
B16: (d) užití Zboží za jiným účelem, než jaký je stanoven v kterémkoliv z dokumentů uvedeným pod bodem a) výše;
B17: (e) opotřebení Zboží spojené s přirozeným během životnosti Zboží a běžným použitím (např. varistoru svodičů přepětí);
B18: (f) nadměrného užití Zboží, tj. užitím v rozporu s doporučením či instrukcemi Prodávajícího (např. překročením počtu deklarovaných pracovních cyklů);
B19: (g) užití Zboží v rozporu s jakoukoliv provozní či montážní podmínkou stanovenou ve výrobkové normě či kterémkoliv jiném dokumentu uvedeným pod bodem a) výše;
B20: (h) užití Zboží v prostředí či na místě, kde dochází k působení vnějších vlivů a které neodpovídají podmínkám stanoveným či doporučeným Prodávajícím;
B21: (i) nesprávné údržby Zboží, za kterou se považuje údržba prováděná v rozporu s kterýmkoliv z dokumentů uvedeným pod bodem a) výše;
B22: (j) připojení Zboží k jinému Zboží či jakémukoliv jinému výrobku či zařízení jinak, než jak je doporučeno či stanoveno Prodávajícím v kterémkoliv z dokumentů uvedeným pod bodem a) výše;
B23: (k) jakékoliv změny či úpravy Zboží, které byly provedeny Kupujícím či jakoukoliv třetí osobou s výjimkou osoby určené či schválené Prodávajícím;
B24: (l) vnějších vlivů mimo kontrolu Prodávajícího, za které se považuje zejména působení slunečního či jiného záření, elektromagnetického pole, vniknutí tekutiny, vniknutí prachu, pylu či jakéhokoliv předmětu, přepětí v síti, kolísání sítě, přepětí nebo zkrat na vstupech či výstupech, napětí vzniklé při elektrostatickém výboji (včetně blesku), chybné napájecí nebo vstupní napětí, nevhodná polarita napětí, nebo vliv chemických procesů; a
B25: (m) vyšší moci, za níž se považuje zejména záplava, povodeň, požár, zásah blesku, zemětřesení, stávka či občanské nepokoje.
B26: 2.3 Za rozpor s kupní smlouvou se nepovažuje a reklamační nárok nebude uznán v případě, kdy Zboží nemá vadu, avšak neplní funkce předpokládané či očekávané Kupujícím; nebo tyto funkce plnit nemůže, neboť jeho instalace byla navržena či provedena takovým způsobem, že Zboží tyto funkce ani objektivně plnit nemohlo. Za vadu se také nepovažuje jakákoliv odlišnost ve velikosti, barvě či tvaru Zboží v porovnání s jeho vyobrazením uvedeným v katalogu či jiném dokumentu Prodávajícího.
B28: III. REKLAMACE A EVROPSKÁ ZÁRUKA
B29: 3.1 Kupující je oprávněn uplatnit nárok z odpovědnosti za vadu Zboží vzniklou v průběhu Záruční doby (dále jen „Reklamace“) v jakékoliv provozovně uvedené v seznamu předloženém Kupujícímu při nákupu Zboží či dostupném na internetových stránkách Prodávajícího (dále jen „Seznam“).
B30: 3.2 Kupující je za podmínek uvedených v tomto Reklamačním řádu oprávněn uplatnit Reklamaci i mimo území státu, v němž bylo Zboží zakoupeno, je-li takový stát (provozovna) uveden v Seznamu.
B31: 3.3 Podmínkou pro uplatnění nároku na Reklamaci je:
B32: (a) označení osoby, která Zboží zakoupila a která Reklamaci uplatňuje;
B33: (b) označení Zboží, které je předmětem Reklamace (typ, kód a další identifikační údaje o Zboží);
B34: (c) předložení originálu dokladu o zakoupení Zboží;
B35: (d) vyplnění reklamačního listu v jazyce státu, v němž je Reklamace uplatněna;
B36: (e) podrobný popis vady Zboží a způsob, jakým se vada projevuje;
B37: (f) podrobný popis způsobu zapojení a užití Zboží;
B38: (g) preferovaný způsob vyřízení Reklamace; a
B39: (h) uplatnění vady výhradně v autorizovaném servisu, uvedeném v Seznamu.
B40: 3.4 Reklamace bude vyřízena bez zbytečného odkladu, a to následujícím způsobem:
B41: (a) jde-li o vadu odstranitelnou, má Kupující nárok požadovat (i) odstranění vady opravou Zboží, (ii) dodání chybějícího Zboží; nebo (iii) přiměřenou slevu z Kupní ceny; a
B42: (b) jde-li o vadu neodstranitelnou, má Kupující nárok požadovat (i) výměnu Zboží; (ii) slevu z Kupní ceny; nebo může od Kupní smlouvy odstoupit.
B43: 3.5 Kupující bere na vědomí a souhlasí, že v případě, že Reklamaci uplatní (i) v jiném státě než ve kterém Zboží zakoupil; či (ii) u jiného subjektu, než u kterého Zboží zakoupil (např. pokud Kupující Zboží zakoupil u třetí osoby a Reklamaci uplatňuje přímo u Prodávajícího), bude odlišně od článku 3.4 tohoto Reklamačního řádu Reklamace vyřízena výhradně formou opravy či výměny Zboží. Pro vyloučení jakýchkoliv pochybností o významu tohoto ujednání se výslovně stanovuje, že v případech dle první věty tohoto článku nelze Reklamaci vyřídit formou slevy a nelze od kupní smlouvy, na základě které bylo Zboží zakoupeno, odstoupit.
B44: 3.6 Volba nároku na způsob odstranění vady Zboží náleží Kupujícímu. Tento nárok je omezen v případě Reklamace dle článku 3.5 tohoto Reklamačního řádu.
B46: IV. PLATNOST REKLAMAČNÍHO ŘÁDU
B47: 4.1 Tento Reklamační řád je platný od 1. ledna 2015

Sheet Manuál
B2: ______________________________________________________
B3: MANUÁL
B4: ______________________________________________________
B7: 1. Vyberte list "Rabatové podmínky" a zadejte příslušné slevové koeficienty. Lze je zadat buď pro zákládní skupiny nebo samostatně pro jemné členění.
B8: 2. Rabatové podmínky musí být zadány před tvorbou nabídky nebo objednávky. Následné změny se do již existující nabídky nebo objednávky nepromítnou.
B9: 3. Pro přidání položky do Objednávky vyberte jakoukoliv buňku v příslušném řádku na listu "Ceník NOARK" a stiskněte tlačítko "Přidat do objednávky".
B10: 4. Pro přidání položky do Nabídky vyberte jakoukoliv buňku v příslušném řádku na listu "Ceník NOARK" a stiskněte tlačítko "Přidat do nabídky".
B11: 5. Po stisku tlačítka dle bodu 3. nebo 4. vyskočí okno. Zadejte požadovaný počet kusů výrobku a stiskněte Enter.
B12: 6. Můžete najednou vybrat více výrobků použitím kláves Shift a Alt. Okna pro zadání počtu kusů se budou objevovat postupně.
B13: 7. Vyplňte kontaktní údaje v hlavičkách listu "Objednávka" nebo "Nabídka"
B14: 8. Chcete-li smazat řádek v nabídce nebo objednávce, vyberte libovolnou buňku v příslušném řádku a stiskněte tlačítko "Smazat řádek".
B15: 9. Můžete vymazat celý seznam z Objednávky nebo Nabídky stisknutím tlačítka "Smazat vše".
B16: 10. Objednávku nebo nabídku můžete uložit použitím standardních prostředků Excel.
B17: 11. Objednávku nebo Nabídku lze exportovat do pdf stiskem tlačítka "Uložit jako PDF".
B18: 12. Pro vytištění Objednávky nebo Nabídky použijte standardních prostředků Excel.
